Cogmind - Beta 11.1 @@@ ROGUE MODE // 2022.09.29 @ 13:36:16 Player: Benkyo Result: Escaped singularity! Performance ------------- Evolutions (9) 4500 Regions Visited (29) 5800 Robots Destroyed (646) 3230 Value Destroyed (36276) 36276 Prototype IDs (278) 5560 Alien Tech Used (17) 3400 Bonus (83632) 83632 TOTAL SCORE: 142398 Bonus ------- Triggered High Security 500 Triggered Max Security 2000 High Alert Combat Kills 25115 Follower Combat Kills 2336 Entered Garrisons 400 Used RIF Installer 1000 Network Hubs Disabled 400 Met Zhirov 300 Built Enhanced Grunts 300 A7 Reached Mainframe 300 Met R17 at Cetus 500 Used Core Reset Matrix 3000 Met R17 at Research 2000 Integrated Exoskeleton 5000 Destroyed MAIN.C Guards 500 Met MAIN.C 5000 Destroyed MAIN.C Shell 5000 Destroyed MAIN.C 10000 Met Architect 300 Destroyed A8 300 Destroyed A6 400 Destroyed A5 500 Destroyed A2 1000 Destroyed Architect 15000 Win 3000 Friendly Fire -519 Cogmind --------- Core Integrity 649/1850 Matter 290/300 Energy 334/340 System Corruption 0% Temperature Cool (0) Movement Walking (30) Location Near Former Tau Ceti IV Parts ------- > --- POWER (2) -------- Zero-point Reactor > --- PROPULSION (4) --- Sigix Exoskeleton > --- UTILITY (5) ------ Experimental Heat Sink Experimental Core Analyzer Quantum Capacitor AEGIS Remote Shield > --- WEAPON (2) ------- Sigix Shearcannon > --- INVENTORY (5) ---- Experimental Cooling System Experimental Energy Well (600) Experimental Energy Well (600) Peak State ------------ > --- POWER ------------ Micro Antimatter Reactor Improved Quantum Reactor > --- PROPULSION ------- Centrium Leg Sigix Exoskeleton > --- UTILITY ---------- Medium Storage Unit Experimental Target Analyzer Experimental Core Analyzer Femtoactuators Spacefold Activator > --- WEAPON ----------- Sigix Shearcannon > --- INVENTORY -------- Experimental Cooling System Experimental Energy Well Quantum Capacitor Advanced Force Field High-powered Transdimensional Reconstructor Core Regenerator Terrabomb Sigix Terminator [Rating: 262] Favorites ----------- Power Heavy Deuterium Engine Engine Heavy Deuterium Engine Power Core Neutrino Core Reactor Quantum Reactor Propulsion Armored Treads Treads Armored Treads Leg Flexi-carbon Leg Wheel Compact Wheel Utility Huge Storage Unit Device Advanced Heat Sink Storage Huge Storage Unit Processor Advanced Signal Interpreter Hackware Hacking Suite Protection Centrium Medium Armor Plating Artifact Spacefold Activator Weapon Heavy Ion Cannon Energy Gun Beamcaster Energy Cannon Heavy Ion Cannon Ballistic Gun Autogun Ballistic Cannon Advanced Assault Cannon Launcher Rocket Array Special Weapon Remote Datajack Impact Weapon Core Stripper Slashing Weapon Sigix Broadsword Piercing Weapon Plasma Lance Build | -11 -10 -10 -10 -9 -8 -8 -8 -8 -7 -7 -7 -5 -5 -5 -5 -5 -4 -4 -4 -4 -3 -3 -3 -2 -2 -2 -1 -1 -1 ------- Run | Scr Mat Min Exi Min Mat Gar Mat Gar Fac Sto Rec Fac Ext Cet Arc Hub Fac Upp Upp War Pro Res Tes Res Qua Sec Acc Com Ac0 Slots Evolved 18 | . . . . . 4 . . . 2 . . 4 . . . . 2 . . . . 2 . 2 . . 2 . . Power 1 | . . . . . . . . . . . . 1 . . . . . . . . . . . . . . . . . Propulsion 4 | . . . . . . . . . 2 . . 2 . . . . . . . . . . . . . . . . . Utility 13 | . . . . . 4 . . . . . . 1 . . . . 2 . . . . 2 . 2 . . 2 . . Weapon . | . . . . . . . . . . . . . . . . . . . . . . . . . . . . . . Parts Attached 494 | 7 7 10 1 6 41 1 17 7 41 24 1 19 38 12 . 20 30 8 1 . 4 25 38 8 30 66 13 16 3 Power 38 | 1 3 . . 1 5 . 1 . 2 1 . 2 1 2 . . 2 1 . . . 2 2 . 3 6 . 3 . Engine 16 | 1 3 . . 1 4 . 1 . 2 1 . 1 1 . . . . . . . . . . . . 1 . . . Core 2 | . . . . . 1 . . . . . . 1 . . . . . . . . . . . . . . . . . Reactor 20 | . . . . . . . . . . . . . . 2 . . 2 1 . . . 2 2 . 3 5 . 3 . Propulsion 96 | 2 . 4 . 2 14 . 8 3 12 3 1 4 11 1 . 4 4 . . . 1 8 8 . 1 4 1 . . Treads 47 | 2 . 3 . . 7 . 4 2 5 2 . 4 5 1 . 3 4 . . . 1 1 . . . 3 . . . Leg 25 | . . . . 2 2 . . . . . . . 2 . . 1 . . . . . 7 8 . 1 1 1 . . Wheel 24 | . . 1 . . 5 . 4 1 7 1 1 . 4 . . . . . . . . . . . . . . . . Hover . | . . . . . . . . . . . . . . . . . . . . . . . . . . . . . . Flight . | . . . . . . . . . . . . . . . . . . . . . . . . . . . . . . Utility 256 | 2 2 . . 2 17 . 4 2 18 16 . 9 12 4 . 11 21 3 1 . 3 12 20 8 18 45 12 11 3 Device 153 | 1 1 . . 1 8 . 2 . 7 10 . 6 7 . . 6 15 1 . . . 8 12 5 15 27 8 10 3 Storage 11 | 1 1 . . 1 2 . . . . . . . . 1 . . . . . . . . 2 1 . 2 . . . Processor 22 | . . . . . 3 . . . 2 . . . . 1 . 1 . . . . . . 2 . 2 7 4 . . Hackware 4 | . . . . . . . 1 . 2 . . 1 . . . . . . . . . . . . . . . . . Protection 61 | . . . . . 4 . 1 2 7 6 . 2 5 2 . 4 6 2 1 . 3 4 4 2 1 5 . . . Artifact 5 | . . . . . . . . . . . . . . . . . . . . . . . . . . 4 . 1 . Weapon 104 | 2 2 6 1 1 5 1 4 2 9 4 . 4 14 5 . 5 3 4 . . . 3 8 . 8 11 . 2 . Energy Gun 5 | . . . . . 1 . . . . . . . . . . . . . . . . . 1 . . 3 . . . Energy Cannon 51 | . . . . . . . 1 . 4 2 . 2 10 2 . 4 3 3 . . . 1 6 . 7 5 . 1 . Ballistic Gun 23 | 2 2 5 1 1 4 1 1 . . . . . . 2 . 1 . . . . . 1 1 . . 1 . . . Ballistic Cannon 10 | . . . . . . . 1 1 2 1 . 1 2 1 . . . . . . . 1 . . . . . . . Launcher 7 | . . 1 . . . . . 1 . 1 . . 2 . . . . 1 . . . . . . . . . 1 . Special Weapon 3 | . . . . . . . . . 2 . . 1 . . . . . . . . . . . . . . . . . Impact Weapon 3 | . . . . . . . 1 . 1 . . . . . . . . . . . . . . . 1 . . . . Slashing Weapon 1 | . . . . . . . . . . . . . . . . . . . . . . . . . . 1 . . . Piercing Weapon 1 | . . . . . . . . . . . . . . . . . . . . . . . . . . 1 . . . Special Melee Weapon . | . . . . . . . . . . . . . . . . . . . . . . . . . . . . . . Unidentified Prototypes 43 | . . . . . . 1 . . 2 1 . . . 5 . 2 . . . . . 1 9 . 4 10 2 6 . Corrupted Parts 1 | . . . . . . . . . . . . . . . . 1 . . . . . . . . . . . . . System Corruption 4 | . . . . . . . . . . . . . . . . 4 . . . . . . . . . . . . . Parts Lost 78 | . 1 8 . . 5 1 . 2 7 5 . 1 11 . . 1 8 4 1 . 4 9 3 . 2 5 . . . Power 12 | . 1 . . . 1 . . . 1 . . . 1 . . . 2 1 . . 1 2 . . 1 1 . . . Propulsion 23 | . . 3 . . 1 . . 1 2 1 . 1 8 . . 1 2 . . . 1 2 . . . . . . . Utility 28 | . . 1 . . 1 . . 1 3 3 . . 1 . . . 4 1 1 . 2 5 3 . 1 1 . . . Weapon 15 | . . 4 . . 2 1 . . 1 1 . . 1 . . . . 2 . . . . . . . 3 . . . Highest Loss Streak 8 | . 1 8 . . 2 1 . 2 3 2 . 1 3 . . 1 2 3 1 . 1 4 1 . 2 2 . . . To Critical Strikes 2 | . . . . . . . . . 1 . . . . . . . . . . . . . . . . 1 . . . Average Slot Usage (%) 85 | . 100 75 33 54 97 99 92 98 95 86 99 99 89 97 94 91 80 74 74 73 74 71 87 78 74 73 66 64 56 Engine 4 | . 14 9 . 2 8 9 9 9 7 7 7 10 7 5 . . . . . . . . . . . . . . . Reactor 4 | . . . . . . . . . . . . . . 5 11 11 10 9 10 10 9 2 8 8 7 7 15 10 7 Treads 11 | . 28 21 14 10 11 . 16 16 11 9 7 18 18 29 29 26 16 15 15 15 14 4 . . . 1 . . . Leg 4 | . . . . 5 3 . . . . . . . 2 . . . . . . . . 14 25 17 17 13 10 15 10 Wheel 3 | . . 2 14 11 2 18 1 1 14 13 22 14 9 3 . . . . . . . . . . . . . . . Device 17 | . 14 9 . 2 28 18 7 9 11 13 15 17 17 15 11 19 22 24 22 21 21 18 17 20 15 11 . 18 23 Storage 6 | . 14 9 . 7 9 9 9 9 7 7 7 5 5 5 11 5 5 5 5 5 5 4 4 4 4 4 7 . . Processor 8 | . . . . . 8 18 18 18 14 7 7 3 . 1 5 5 5 5 5 5 5 4 12 13 13 13 17 10 7 Protection 7 | . . . . . 6 9 9 17 8 10 15 11 11 16 11 8 9 6 4 5 7 13 7 4 7 6 . . . Energy Cannon 5 | . . . . . . . 6 9 8 8 7 5 8 4 5 5 8 6 10 10 10 1 7 8 6 6 7 6 7 Ballistic Gun 4 | . 28 21 5 14 10 16 10 . . . . . . 4 5 4 1 . . . . . . . . . . . . Ballistic Cannon 1 | . . . . . . . . 8 5 5 7 4 1 . . . . . . . . 3 . . . . . . . Naked Turns 16 | . . 16 . . . . . . . . . . . . . . . . . . . . . . . . . . . Heaviest Build 203 | 12 32 32 2 23 108 107 118 127 146 146 135 162 171 153 151 160 164 154 152 152 152 149 164 171 197 203 60 69 60 Greatest Support 235 | 40 40 40 3 40 40 22 40 40 48 44 42 42 109 166 166 200 235 225 225 225 150 150 190 190 192 235 60 60 60 Greatest Overweight (x) 15 | 1 . . . . 8 4 5 12 12 8 5 6 15 1 . 1 . . . . 1 5 1 . 1 1 . 1 . Average Overweight (x) 1 | . . . . . 1 4 2 3 4 3 3 3 4 . . . . . . . . . . . . . . . . Largest Inventory Capacity 25 | 8 15 15 5 10 25 25 25 25 25 25 25 25 25 25 25 25 25 25 25 25 25 25 25 25 25 25 10 10 5 Average Capacity 22 | 7 14 12 5 7 22 25 25 25 25 25 25 25 25 25 25 25 25 25 25 25 25 25 25 25 25 23 10 5 5 Most Carried 25 | 6 15 15 5 8 25 25 25 24 25 25 25 25 25 25 25 25 25 25 22 22 22 25 25 25 25 25 10 10 5 Average Carried 21 | 5 13 11 3 5 21 24 24 22 23 24 24 24 24 24 25 24 24 23 21 22 20 21 24 24 24 22 9 5 4 Final Capacity 25 | 8 15 5 5 10 25 25 25 25 25 25 25 25 25 25 25 25 25 25 25 25 25 25 25 25 25 10 10 5 5 Final Carried 25 | 6 15 3 4 7 25 25 24 22 25 23 25 25 25 25 25 25 25 22 22 22 18 25 25 24 23 9 10 4 3 Class Distribution -------------------- 43% | Mutant 43% | Scavenger-Mutant 7% | Alien-Sigix Dominant Class ---------------- Mutant | -10/Materials Mutant | -10/Mines Mutant | -10/Exiles Mutant | -9/Mines Scavenger-Mutant | -8/Materials Mutant | -8/Garrison Mutant | -8/Materials Mutant | -8/Garrison Mutant | -7/Factory Scavenger-Mutant | -7/Storage Commander-Mutant | -7/Recycling Scavenger-Mutant | -5/Factory Scavenger-Mutant | -5/Extension Scavenger-Mutant | -5/Cetus Scavenger-Mutant | -5/Archives Scavenger-Mutant | -5/Hub_04(d) Scavenger-Mutant | -4/Factory Mutant | -4/Upper Caves Mutant | -4/Upper Caves Mutant | -4/Warlord Mutant | -3/Proximity Caves Scavenger-Mutant | -3/Research Scavenger-Mutant | -3/Testing Scavenger-Mutant | -2/Research Mutant | -2/Quarantine Scavenger-Mutant | -2/Section 7 Alien-Sigix | -1/Access Alien-Sigix | -1/Command Alien-Sigix | -1/Access_0 Resources | -11 -10 -10 -10 -9 -8 -8 -8 -8 -7 -7 -7 -5 -5 -5 -5 -5 -4 -4 -4 -4 -3 -3 -3 -2 -2 -2 -1 -1 -1 ----------- Run | Scr Mat Min Exi Min Mat Gar Mat Gar Fac Sto Rec Fac Ext Cet Arc Hub Fac Upp Upp War Pro Res Tes Res Qua Sec Acc Com Ac0 Matter Collected 9288 | 378 394 80 150 24 1178 130 594 82 739 658 40 326 497 236 . 221 540 120 118 . 104 788 302 221 239 794 130 160 45 Remotely . | . . . . . . . . . . . . . . . . . . . . . . . . . . . . . . Salvage Created 33533 | 134 773 130 . 24 1825 175 1149 177 973 1574 . 412 1553 367 . 678 1807 1154 483 . 569 643 1678 478 236 2239 706 10930 2666 Parts 1371 | 9 58 3 . 1 99 10 58 17 46 73 . 8 70 17 . 41 83 25 14 . 18 24 73 20 11 111 24 316 142 Haulers Intercepted 19 | . 2 . . . 4 . 2 . 2 4 . 1 . . . . 1 . . . . 1 . 1 . . 1 . . Recyclers Shooed 9 | . . . . . . . . . 1 . . 1 5 . . . 1 . . . . . . . . 1 . . . Parts Field Recycled . | . . . . . . . . . . . . . . . . . . . . . . . . . . . . . . Retrieved Matter . | . . . . . . . . . . . . . . . . . . . . . . . . . . . . . . Parts Self-Destructed 47 | . . . . . . . . . . . . . . . . . . 20 12 . 15 . . . . . . . . Prevented 16 | . . . . . . . . . . . . . . . . . . 12 1 . 3 . . . . . . . . Kills | -11 -10 -10 -10 -9 -8 -8 -8 -8 -7 -7 -7 -5 -5 -5 -5 -5 -4 -4 -4 -4 -3 -3 -3 -2 -2 -2 -1 -1 -1 ------- Run | Scr Mat Min Exi Min Mat Gar Mat Gar Fac Sto Rec Fac Ext Cet Arc Hub Fac Upp Upp War Pro Res Tes Res Qua Sec Acc Com Ac0 Combat Hostiles Destroyed 643 | . 18 5 . . 34 8 20 16 14 27 . 4 20 7 . 11 30 16 8 . 10 13 18 4 3 25 5 300 27 Guns 88 | . 18 4 . . 33 8 8 . . . . . . 4 . 5 . . . . . . 3 . . 5 . . . Cannons 342 | . . . . . . . 12 7 14 27 . 4 10 3 . 5 24 11 7 . 6 13 11 4 2 17 5 133 27 AOE 190 | . . 1 . . . . . 9 . . . . 8 . . . . 4 . . 1 . . . . . . 167 . Classes Destroyed 30 | 2 5 1 . . 5 . 1 . 3 1 . . 1 . . 1 . 1 . . . . 1 . 1 3 . 4 . Worker 13 | . . . . . 1 . . . 2 2 . . 1 . . 4 1 . . . . . . . . . . 2 . Builder 19 | . . . . . 1 . 1 . . 2 . 2 3 . . 3 3 . . . . 1 1 . . 2 . . . Tunneler 8 | 4 . . . 1 . . . . . . . 1 2 . . . . . . . . . . . . . . . . Hauler 19 | . 2 . . . 4 . 2 . 2 4 . 1 . . . . 1 . . . . 1 . 1 . . 1 . . Recycler 20 | 1 . . . . 1 . . . 4 1 . 1 3 . . . 1 . . . . . 2 1 . 2 1 2 . Carrier 18 | . . . . . . . . . . . . . . . . . . . . . . . . . . . . 18 . Minesweeper 1 | . . . . . . . . . . . . . . . . . . 1 . . . . . . . . . . . Mechanic 4 | . . . . . 1 . . . . . . . . . . . . . . . . 1 . . . . . 2 . Operator 7 | . 1 . . . 2 . . . . 1 . . . . . . . . . . . . . . . . . 3 . Drone 1 | . . . . . . . . . . 1 . . . . . . . . . . . . . . . . . . . Watcher 24 | . 3 . . . 4 . 3 . 2 1 . . 2 . . 1 . . . . . . 1 . 1 2 2 2 . Swarmer 121 | . 6 . . . 9 6 2 11 6 4 . . 8 2 . 4 9 1 4 . 3 3 1 . . 1 . 41 . Cutter 6 | . . . . . . . . . . . . . . . . . . . . . . . . . . . . 6 . Saboteur 9 | . . . . . . . . . . . . . . . . . . . . . . . . . . 1 . 8 . Grunt 181 | . 12 2 . . 15 2 9 3 3 9 . . 5 1 . 5 3 7 3 . 3 8 9 . . 1 4 77 . Brawler 18 | . . . . . . . 2 . . . . 1 . . . . . . . . . . . . . . . 15 . Duelist 18 | . . . . . . . . . . . . . . . . 1 . 2 1 . . . . . . . . 14 . Protector 7 | . . . . . . . . . . . . . . . . . . . . . . . . . . . . 7 . Researcher 1 | . . . . . . . . . . . . . . . . . . . . . . . 1 . . . . . . Sentry 40 | . . . . . 7 . 5 2 . 11 . . 2 . . 1 5 2 . . 1 . . . . 1 1 2 . Demolisher 7 | . . . . . . . . . . . . . . . . . . . . . . . . . . . . 7 . Specialist 17 | . . . . . . . . . 1 . . . . . . . . . . . . . . . . . . 16 . Hunter 77 | . . . . . 3 . 2 . 1 1 . 1 3 . . . 6 2 . . 2 2 2 . . 4 . 48 . Programmer 76 | . . . . . . . . . 2 2 . 2 . . . . 6 2 . . 1 . 5 4 2 8 . 42 . Heavy 1 | . . . . . . . . . 1 . . . . . . . . . . . . . . . . . . . . Behemoth 5 | . . . . . . . . . . . . . 2 . . . 1 . . . . . . . . . . 2 . Cetus Guard 4 | . . . . . . . . . . . . . . 4 . . . . . . . . . . . . . . . S7 Guard 1 | . . . . . . . . . . . . . . . . . . . . . . . . . . 1 . . . M Guard 2 | . . . . . . . . . . . . . . . . . . . . . . . . . . . . 2 . M Shell/Atk 1 | . . . . . . . . . . . . . . . . . . . . . . . . . . . . 1 . Enhanced Grunt 17 | . . . . . . . . . . . . . . . . . . . . . . . . . . . . . 17 Enhanced Sentry 1 | . . . . . . . . . . . . . . . . . . . . . . . . . . . . . 1 Enhanced Hunter 4 | . . . . . . . . . . . . . . . . . . . . . . . . . . . . . 4 Combat Programmer 2 | . . . . . . . . . . . . . . . . . . . . . . . . . . . . 2 . Striker 4 | . . . . . . . . . . . . . . . . . . . . . . . . . . 2 . 2 . Executioner 8 | . . . . . . . . . . . . . . . . . . . . . . . . . . 4 . 4 . Alpha 7 5 | . . . . . . . . . . . . . . . . . . . . . . . . . 1 2 . 2 . Protovariant G 1 | . . . . . . . . . . . . . . . . . . . . . . . 1 . . . . . . Decomposer 4 | . . . . . . . . . . . . . . . . . . . 4 . . . . . . . . . . Packrat 4 | . . . . . . . . . . . . . . . . . . 3 1 . . . . . . . . . . Assembled 3 | . . 3 . . . . . . . . . . . . . . . . . . . . . . . . . . . Best Kill Streak 188 | 2 4 3 . 1 4 3 5 12 6 5 . 8 5 3 . 7 7 6 4 . 3 3 5 2 2 3 3 188 11 Combat Bots Only 168 | . 4 3 . . 4 3 3 12 3 5 . 4 5 3 . 6 7 6 4 . 3 3 3 2 2 3 3 168 11 Max Kills in Single Turn 185 | 1 1 1 . 1 2 1 2 3 2 2 . 1 4 1 . 5 1 3 1 . 1 1 1 1 1 2 3 185 2 Gunslinging 1 | . . . . . 1 . . . . . . . . . . . . . . . . . . . . . . . . Exploded 167 | . . 1 . . . . . 3 . . . . 4 . . . . 3 . . 1 . . . . . . 167 . Melee . | . . . . . . . . . . . . . . . . . . . . . . . . . . . . . . Uniques/NPCs Destroyed 7 | . . . . . . . . . . . . . . . . . . . . . . . . . . . . 2 5 MAIN.C Shell (-1/Command) MAIN.C (-1/Command) A8 (-1/Access_0) A5 (-1/Access_0) A6 (-1/Access_0) A2 (-1/Access_0) Architect (-1/Access_0) Combat | -11 -10 -10 -10 -9 -8 -8 -8 -8 -7 -7 -7 -5 -5 -5 -5 -5 -4 -4 -4 -4 -3 -3 -3 -2 -2 -2 -1 -1 -1 -------- Run | Scr Mat Min Exi Min Mat Gar Mat Gar Fac Sto Rec Fac Ext Cet Arc Hub Fac Upp Upp War Pro Res Tes Res Qua Sec Acc Com Ac0 Damage Taken 35142 | . 403 1121 . . 1587 384 935 473 1315 2431 . 531 2291 80 . 1126 3134 1699 856 . 551 1908 1516 503 1650 6712 335 3018 583 Core 4634 | . 41 202 . . 273 98 104 53 98 180 . 22 161 . . 48 101 49 16 . 22 110 180 . 64 1273 295 1068 176 Absorbed by Shields 2455 | . . . . . 103 . . . . . . 159 12 36 . . 69 . . . . . . . 506 728 . 304 538 Reduced by Siege Mode 596 | . . . . . . . . . . . . . . . . . 196 202 55 . 25 9 . . . 109 . . . Regen/Repaired (Parts) 5414 | . . . . . 401 . . . . 565 . . . . . . 458 . . . . . 172 122 801 2895 . . . Core Remaining (%) 50 | 100 . . . 2 . . . 4 . . 60 . . . . 76 . . . . 83 . 77 . . 21 . . 35 Volleys Fired 1756 | 27 49 18 . 2 128 16 69 19 62 121 11 37 94 17 . 37 156 85 61 . 53 60 100 39 65 184 17 169 60 Largest 2 | 2 2 2 . 1 2 2 2 2 2 2 2 2 2 2 . 2 2 1 1 . 1 1 2 1 1 2 1 1 1 Hottest 214 | 40 46 46 . 24 103 100 113 113 113 113 113 133 155 125 . 150 125 105 105 . 105 105 214 94 94 200 180 180 180 Shots Fired 2462 | 54 98 35 . 2 252 31 138 28 109 225 16 70 182 30 . 63 186 87 64 . 54 60 114 39 65 214 17 169 60 Gun 687 | 54 98 34 . 2 252 31 84 . . . . . . 13 . 29 30 . . . . . 14 . . 46 . . . Cannon 1753 | . . . . . . . 54 18 106 225 16 67 180 17 . 34 156 85 64 . 54 60 100 39 65 168 17 168 60 Launcher 16 | . . 1 . . . . . 10 . . . . 2 . . . . 2 . . . . . . . . . 1 . Special 6 | . . . . . . . . . 3 . . 3 . . . . . . . . . . . . . . . . . Kinetic 795 | 54 98 34 . 2 182 24 98 9 35 73 5 34 4 17 . 29 30 . . . . 53 14 . . . . . . Thermal 1213 | . . . . . 70 7 40 9 71 152 11 33 126 13 . 32 147 67 57 . 47 7 77 35 59 152 . 1 . Explosive 15 | . . 1 . . . . . 10 . . . . 2 . . . . 2 . . . . . . . . . . . Electromagnetic 135 | . . . . . . . . . . . . . 50 . . 2 9 18 7 . 7 . 23 4 6 9 . . . Slashing 298 | . . . . . . . . . . . . . . . . . . . . . . . . . . 53 17 168 60 Robot Hit Streak 34 | 10 10 5 . 4 22 6 18 7 11 27 . 7 13 15 . 6 18 24 16 . 15 7 17 4 11 31 21 34 9 Robot Miss Streak 12 | 5 3 2 . 2 6 2 3 3 3 4 8 9 4 2 . 3 3 3 3 . 3 3 7 3 7 6 3 12 11 Penetration Max 1 | . . . . . 1 . . . . . . . . 1 . . 1 . . . . . 1 . . 1 1 1 1 Secondary Targets 7 | . 2 1 . . 4 . . . . . . . . . . . . . . . . . . . . . . . . Max Gunslinging Chain 1 | . 1 1 . . 1 . . . . . . . . . . . . . . . . . . . . . . . . Capacitor 847 | . . . . . . . . . . . . . . . . . 126 83 64 . 54 4 81 39 65 108 . 163 60 Shots Hit Robots 1662 | 35 60 26 . 2 186 19 99 16 72 153 . 35 130 20 . 26 119 64 47 . 35 38 64 12 35 156 6 160 47 Core Hits 1311 | 12 33 13 . 2 89 10 43 20 32 54 . 10 54 14 . 30 48 42 14 . 12 18 31 5 8 52 16 495 154 Critical Kills 22 | . . . . . 1 1 . . . 1 . . . 3 . 1 6 . 1 . 1 . 4 1 1 1 . . . Critical Parts Destroyed 5 | . . . . . 2 . . . . . . . . . . 1 . . . . . . 2 . . . . . . Critical Strikes 135 | . . . . . 12 1 . 1 1 5 . 1 . 4 . 2 6 . 1 . 1 8 7 1 1 6 1 69 7 Burn 9 | . . . . . 9 . . . . . . . . . . . . . . . . . . . . . . . . Meltdown 14 | . . . . . . . . . . 1 . . . . . 1 6 . 1 . 1 . 1 1 1 1 . . . Destroy 13 | . . . . . 3 1 . . . . . . . 3 . 1 . . . . . . 5 . . . . . . Blast 16 | . . . . . . . . 1 1 4 . 1 . 1 . . . . . . . 8 . . . . . . . Corrupt 1 | . . . . . . . . . . . . . . . . . . . . . . . 1 . . . . . . Sever 82 | . . . . . . . . . . . . . . . . . . . . . . . . . . 5 1 69 7 Melee Attacks 7 | . . . . . . . 1 . 2 . . . . . . . . . . . . . . . 4 . . . . Kinetic 4 | . . . . . . . . . . . . . . . . . . . . . . . . . 4 . . . . Impact 3 | . . . . . . . 1 . 2 . . . . . . . . . . . . . . . . . . . . Slashing . | . . . . . . . . . . . . . . . . . . . . . . . . . . . . . . Piercing . | . . . . . . . . . . . . . . . . . . . . . . . . . . . . . . Sneak Attacks . | . . . . . . . . . . . . . . . . . . . . . . . . . . . . . . Combat Hostiles . | . . . . . . . . . . . . . . . . . . . . . . . . . . . . . . Follow-up Attacks . | . . . . . . . . . . . . . . . . . . . . . . . . . . . . . . Damage Inflicted 237518 | 362 900 529 . 28 3845 362 2218 1154 1962 4244 26 1189 4615 927 . 1552 4406 2904 1708 . 1485 2355 2585 597 1452 8014 1111 174669 12319 Guns 9044 | 362 900 360 . 28 3845 362 1052 . . . . . . 334 . 364 294 . . . . . 285 . . 858 . . . Cannons 83750 | . . . . . . . 1166 348 1962 4244 26 1189 4057 593 . 482 4112 2257 1708 . 1385 2355 2300 597 1305 7131 1111 33103 12319 Explosions 144552 | . . 169 . . . . . 806 . . . . 558 . . 706 . 647 . . 100 . . . . . . 141566 . Melee 147 | . . . . . . . . . . . . . . . . . . . . . . . . . 147 . . . . Ramming 25 | . . . . . . . . . . . . . . . . . . . . . . . . . . 25 . . . Kinetic 12582 | 362 900 360 . 28 2755 246 1226 210 584 1286 . 498 109 679 . 364 294 . . . . 2249 285 . 147 . . . . Thermal 170397 | . . . . . 1090 116 992 138 1378 2958 26 691 2991 248 . 417 3932 1738 1587 . 1249 106 1569 512 1237 5856 . 141566 . Explosive 2106 | . . 169 . . . . . 806 . . . . 484 . . . . 647 . . . . . . . . . . . Electromagnetic 4000 | . . . . . . . . . . . . . 1031 . . 771 180 519 121 . 236 . 731 85 68 258 . . . Impact . | . . . . . . . . . . . . . . . . . . . . . . . . . . . . . . Slashing 48408 | . . . . . . . . . . . . . . . . . . . . . . . . . . 1875 1111 33103 12319 Piercing . | . . . . . . . . . . . . . . . . . . . . . . . . . . . . . . Highest Corruption 9 | . . 9 9 9 . . . . 1 2 . 4 5 . . 7 3 7 7 7 7 . 2 . 1 3 . . . Average Corruption 4 | . . 8 9 9 . . . . 1 1 . 2 3 . . 4 2 6 7 7 7 . 1 . 1 1 . . . Corruption Purged 15 | . . . . . . . . . 1 2 . 2 5 . . . . . . . . . . . . 5 . . . Corruption Blocked . | . . . . . . . . . . . . . . . . . . . . . . . . . . . . . . Effects 162 | . . 3 2 5 . . . . 1 . . 2 . . . 6 7 47 36 1 32 . 10 . . 10 . . . Message Errors 32 | . . . . 1 . . . . . . . . . . . 1 2 11 6 . 7 . 1 . . 3 . . . Matter Fused 39 | . . 1 1 1 . . . . . . . . . . . 1 3 4 11 1 10 . 5 . . 1 . . . Heat Flow Errors 17 | . . 1 . . . . . . . . . 1 . . . 1 1 8 3 . 1 . . . . 1 . . . Energy Discharges 23 | . . . 1 1 . . . . 1 . . . . . . . . 7 6 . 2 . 3 . . 2 . . . Data Loss (minor) 23 | . . 1 . 1 . . . . . . . . . . . 1 . 7 4 . 8 . . . . 1 . . . Data Loss (major) 11 | . . . . . . . . . . . . . . . . 2 . 3 3 . 3 . . . . . . . . Misfires 8 | . . . . . . . . . . . . . . . . . . 3 3 . 1 . 1 . . . . . . Alerts 5 | . . . . 1 . . . . . . . . . . . . 1 3 . . . . . . . . . . . Weapon Failures 4 | . . . . . . . . . . . . 1 . . . . . 1 . . . . . . . 2 . . . Overload Shots 37 | . . . . . . . . . . . . . . . . . . . . . . . 1 . . 36 . . . Effects 2 | . . . . . . . . . . . . . . . . . . . . . . . . . . 2 . . . Energy Bleed 1 | . . . . . . . . . . . . . . . . . . . . . . . . . . 1 . . . Heat Surge 1 | . . . . . . . . . . . . . . . . . . . . . . . . . . 1 . . . Overflow Damage 14607 | . . . . . . . . 140 5 85 . 41 68 . . . 99 143 120 . 56 263 18 22 46 413 15 13019 54 Projectiles 2191 | . . . . . . . . 60 5 85 . 41 54 . . . 99 143 120 . 56 263 18 22 46 413 15 697 54 Explosions 12416 | . . . . . . . . 80 . . . . 14 . . . . . . . . . . . . . . 12322 . Melee . | . . . . . . . . . . . . . . . . . . . . . . . . . . . . . . Knockbacks 41 | . . . . . . . 2 2 7 5 . 1 3 . . . . . . . . 21 . . . . . . . Impact . | . . . . . . . . . . . . . . . . . . . . . . . . . . . . . . Kinetic 39 | . . . . . . . 2 2 7 5 . 1 2 . . . . . . . . 20 . . . . . . . Secondary 2 | . . . . . . . . . . . . . 1 . . . . . . . . 1 . . . . . . . Self-Inflicted Damage 293 | . . 1 . . . . . 104 . . . . . . . 188 . . . . . . . . . . . . . Shots 7 | . . 1 . . . . . 4 . . . . . . . 2 . . . . . . . . . . . . . Rammed . | . . . . . . . . . . . . . . . . . . . . . . . . . . . . . . Targets Rammed 1 | . . . . . . . . . . . . . . . . . . . . . . . . . . 1 . . . Kicked 1 | . . . . . . . . . . . . . . . . . . . . . . . . . . 1 . . . Crushed . | . . . . . . . . . . . . . . . . . . . . . . . . . . . . . . Highest Temperature 444 | . 42 220 . . 163 70 444 192 206 50 6 430 212 191 . 109 336 281 199 . 199 126 228 46 100 239 . 204 . Average Temperature 73 | . 10 53 . . 35 42 115 72 78 10 2 121 106 65 . 13 101 81 81 . 99 48 50 28 31 50 . 45 . Received Heat Transfer 5317 | . 141 304 . . 658 75 279 162 246 822 . . 454 4 . 162 276 228 181 . 51 362 243 . 135 278 9 225 22 Effects 12 | . . . . . . . 1 . . . . 5 . . . . 4 . . . . . . . . 2 . . . Shutdowns 1 | . . . . . . . 1 . . . . . . . . . . . . . . . . . . . . . . Interference 5 | . . . . . . . . . . . . . . . . . 3 . . . . . . . . 2 . . . Matter Decay 1 | . . . . . . . . . . . . . . . . . 1 . . . . . . . . . . . . Short Circuit 1 | . . . . . . . . . . . . 1 . . . . . . . . . . . . . . . . . Damage (major) 4 | . . . . . . . . . . . . 4 . . . . . . . . . . . . . . . . . Siege Activations 25 | . . . . . . . . . . . . . . . . . 8 4 4 . 5 2 . . . 2 . . . Total Turns 425 | . . . . . . . . . . . . . . . . . 130 67 38 . 31 60 . . . 99 . . . Longest Duration 78 | . . . . . . . . . . . . . . . . . 26 47 18 . 8 39 . . . 78 . . . Robots Corrupted 9 | . . . . . . . . . . . . . 3 . . . . . . . 1 . 3 . . 2 . . . Combat Hostiles 7 | . . . . . . . . . . . . . 2 . . . . . . . 1 . 3 . . 1 . . . Parts Fried 36 | . . . . . . . . . . . . . 12 . . 1 1 3 . . 3 . 9 1 1 5 . . . Impact Corruptions . | . . . . . . . . . . . . . . . . . . . . . . . . . . . . . . Robots Melted 19 | . . . . . 1 . . . . 1 . . . . . 1 7 1 1 . 2 . 1 1 1 2 . . . Combat Hostiles 16 | . . . . . 1 . . . . . . . . . . 1 6 1 1 . 2 . 1 . 1 2 . . . Parts Melted 82 | . . . . . 1 . 1 . 2 8 . 1 13 1 . 1 21 1 3 . 3 . 11 3 4 8 . . . Heat Transferred 33580 | . . . . . 2516 185 1332 185 1850 3959 37 777 3850 333 . 650 4412 1739 1628 . 1160 111 1369 370 1147 4830 . 1140 . Parts Sabotaged . | . . . . . . . . . . . . . . . . . . . . . . . . . . . . . . Parts Stolen . | . . . . . . . . . . . . . . . . . . . . . . . . . . . . . . Parts Stripped . | . . . . . . . . . . . . . . . . . . . . . . . . . . . . . . Power Chain Reactions 3 | . . . . . . . . . . . . . 2 . . . . . . . 1 . . . . . . . . Missiles Intercepted . | . . . . . . . . . . . . . . . . . . . . . . . . . . . . . . Alert | -11 -10 -10 -10 -9 -8 -8 -8 -8 -7 -7 -7 -5 -5 -5 -5 -5 -4 -4 -4 -4 -3 -3 -3 -2 -2 -2 -1 -1 -1 ------- Run | Scr Mat Min Exi Min Mat Gar Mat Gar Fac Sto Rec Fac Ext Cet Arc Hub Fac Upp Upp War Pro Res Tes Res Qua Sec Acc Com Ac0 Peak Influence 2101 | 25 302 143 . 5 479 530 489 648 526 612 386 969 762 1104 846 1673 1168 . . . . 246 307 416 298 2101 1914 1264 . Initial 1260 | . 16 71 . . 1 275 258 265 340 225 197 969 128 426 441 296 819 . . . . 81 27 126 135 40 1260 1234 . Average 396 | 15 157 110 . 4 351 445 270 611 395 454 258 639 418 836 616 783 896 . . . . 125 134 203 197 379 1401 1206 . Maximum Alert Level 5 | . 1 . . . 2 2 2 2 2 2 1 3 3 4 3 5 4 . . . . 1 1 2 1 5 5 5 . Low Security (%) 23 | 100 77 100 . 100 7 . 14 . . . 21 . 17 . . . . . . . . 92 77 56 41 26 . . . Level 1 34 | . 22 . . . 54 29 74 7 56 23 78 5 26 . . 38 . . . . . 7 22 38 58 55 . . . Level 2 24 | . . . . . 38 70 11 92 43 76 . 52 40 36 58 9 9 . . . . . . 5 . 10 . . . Level 3 8 | . . . . . . . . . . . . 42 15 32 41 34 77 . . . . . . . . . . . . Level 4 2 | . . . . . . . . . . . . . . 31 . 3 12 . . . . . . . . . 80 6 . Level 5 5 | . . . . . . . . . . . . . . . . 14 . . . . . . . . . . . 93 . High Security . | . . . . . . . . . . . . . . . . . . . . . . . . . . . . . . Max Security . | . . . . . . . . . . . . . . . . . . . . . . . . . . 7 19 . . Squads Dispatched 310 | . 6 . . . 8 . 4 . 4 9 1 3 3 . . 2 2 . . . . 9 7 2 3 16 8 223 . Investigation 16 | . 4 . . . 2 . 1 . . 2 . . 2 . . . . . . . . 5 . . . . . . . Extermination 14 | . . . . . . . . . 1 2 . 1 . . . . 2 . . . . . 2 1 2 3 . . . Reinforcement 252 | . 2 . . . 2 . 2 . 3 4 1 2 1 . . 1 . . . . . 4 5 1 1 1 . 222 . Assault 23 | . . . . . . . . . . 1 . . . . . 1 . . . . . . . . . 12 8 1 . Garrison 5 | . . . . . 4 . 1 . . . . . . . . . . . . . . . . . . . . . . Intercept . | . . . . . . . . . . . . . . . . . . . . . . . . . . . . . . Searches Triggered 3 | . . . . . . . . . . . . 3 . . . . . . . . . . . . . . . . . Construction Impeded 5 | . . . . . . . 1 . . 1 1 . . . . . . . . . . 1 1 . . . . . . Haulers Reinforced 7 | . . . . . . . . . . 2 . . . . . 1 . . . . . 2 1 1 . . . . . Active Scanning Responses . | . . . . . . . . . . . . . . . . . . . . . . . . . . . . . . Cargo Convoy Interrupts . | . . . . . . . . . . . . . . . . . . . . . . . . . . . . . . Alert ID Control Effect 4 | . . . . . . . . . 4 . . . . . . . . . . . . . . . . . . . . Stealth | -11 -10 -10 -10 -9 -8 -8 -8 -8 -7 -7 -7 -5 -5 -5 -5 -5 -4 -4 -4 -4 -3 -3 -3 -2 -2 -2 -1 -1 -1 --------- Run | Scr Mat Min Exi Min Mat Gar Mat Gar Fac Sto Rec Fac Ext Cet Arc Hub Fac Upp Upp War Pro Res Tes Res Qua Sec Acc Com Ac0 Distress Signals 53 | . 2 . . . 4 . 1 . 1 7 . . 2 2 . . 1 . . . . 7 1 . . 1 2 22 . Communications Jammed 34 | . . . . . . . . . . . . 3 19 . . 9 2 . . . . . 1 . . . . . . Distress Signals 33 | . . . . . . . . . . . . 3 19 . . 8 2 . . . . . 1 . . . . . . Times Spotted 773 | . 24 17 . . 56 10 27 13 24 36 10 9 49 19 1 24 34 18 12 . 10 21 26 9 8 73 13 192 38 Peak Tracking Total 54 | . 4 10 . . 4 3 4 11 5 6 2 3 9 5 6 7 6 7 5 . 3 8 4 3 2 29 15 54 8 Tactical Retreats 49 | . . 1 . . 2 1 2 . 1 . . . 2 2 . 3 . 2 . . . 1 1 . 1 8 2 20 . Traps | -11 -10 -10 -10 -9 -8 -8 -8 -8 -7 -7 -7 -5 -5 -5 -5 -5 -4 -4 -4 -4 -3 -3 -3 -2 -2 -2 -1 -1 -1 ------- Run | Scr Mat Min Exi Min Mat Gar Mat Gar Fac Sto Rec Fac Ext Cet Arc Hub Fac Upp Upp War Pro Res Tes Res Qua Sec Acc Com Ac0 Traps Triggered 34 | . 2 . . . 5 1 . 2 1 . . 4 6 . . 3 1 . . . . . 3 . 2 3 . 1 . Indirectly 2 | . . . . . . . . . . . . . . . . 2 . . . . . . . . . . . . . Trap Hack Attempts . | . . . . . . . . . . . . . . . . . . . . . . . . . . . . . . Triggered . | . . . . . . . . . . . . . . . . . . . . . . . . . . . . . . Disarmed . | . . . . . . . . . . . . . . . . . . . . . . . . . . . . . . Reprogrammed . | . . . . . . . . . . . . . . . . . . . . . . . . . . . . . . Reused . | . . . . . . . . . . . . . . . . . . . . . . . . . . . . . . Traps Extracted . | . . . . . . . . . . . . . . . . . . . . . . . . . . . . . . Installed . | . . . . . . . . . . . . . . . . . . . . . . . . . . . . . . Triggered 3 | . . . . . . . . . . . . . . . . . . 3 . . . . . . . . . . . Machines | -11 -10 -10 -10 -9 -8 -8 -8 -8 -7 -7 -7 -5 -5 -5 -5 -5 -4 -4 -4 -4 -3 -3 -3 -2 -2 -2 -1 -1 -1 ---------- Run | Scr Mat Min Exi Min Mat Gar Mat Gar Fac Sto Rec Fac Ext Cet Arc Hub Fac Upp Upp War Pro Res Tes Res Qua Sec Acc Com Ac0 Machines Disabled 88 | . . . . . . 1 . 1 . 5 2 . 3 5 1 17 2 . . . . . 8 . 8 15 2 9 9 Max in Single Turn 7 | . . . . . . 1 . 1 . 1 1 . 1 . . 7 1 . . . . . 1 . 1 2 1 2 1 Garrison Access 7 | . . . . . . . . . . 1 . . . . . 2 1 . . . . . 1 1 . . 1 . . Garrison Relay 1 | . . . . . . 1 . . . . . . . . . . . . . . . . . . . . . . . Phase Generator 1 | . . . . . . . . . . . . . . . . . . . . . . . . . . . . 1 . Network Hub 2 | . . . . . . . . . . . . . . . . 2 . . . . . . . . . . . . . Machines Sabotaged . | . . . . . . . . . . . . . . . . . . . . . . . . . . . . . . Garrisons Compromised . | . . . . . . . . . . . . . . . . . . . . . . . . . . . . . . Overloaded Fab Kills . | . . . . . . . . . . . . . . . . . . . . . . . . . . . . . . Hacking | -11 -10 -10 -10 -9 -8 -8 -8 -8 -7 -7 -7 -5 -5 -5 -5 -5 -4 -4 -4 -4 -3 -3 -3 -2 -2 -2 -1 -1 -1 --------- Run | Scr Mat Min Exi Min Mat Gar Mat Gar Fac Sto Rec Fac Ext Cet Arc Hub Fac Upp Upp War Pro Res Tes Res Qua Sec Acc Com Ac0 Machines Accessed 109 | . 8 . 1 1 10 . 9 . 2 12 8 3 11 . . 4 9 . 1 . 1 4 8 2 4 6 3 2 . Terminals 68 | . 6 . . . 6 . 6 . 1 7 3 2 10 . . 3 3 . . . 1 2 5 1 3 6 1 2 . Fabricators 4 | . . . . . . . . . . . . . . . . . 2 . . . . 1 1 . . . . . . Repair Stations 5 | . . . . . 1 . . . . 2 . . . . . . 1 . . . . 1 . . . . . . . Recycling Units 15 | . 2 . . . 1 . 1 . 1 2 5 . 1 . . . 1 . . . . . . . . . 1 . . Scanalyzers 6 | . . . . . 1 . 1 . . . . 1 . . . . 1 . . . . . 1 . 1 . . . . Garrison Access 8 | . . . . . 1 . 1 . . 1 . . . . . 1 1 . . . . . 1 1 . . 1 . . Total Hacks 311 | . 24 . 1 1 34 . 20 . 3 36 20 7 23 . . 6 42 . 1 . 1 19 24 4 13 20 7 5 . Successful 163 | . 15 . 1 1 19 . 11 . 2 21 12 3 10 . . 4 26 . 1 . 1 4 11 4 6 7 2 2 . Failed 147 | . 9 . . . 14 . 9 . 1 15 8 4 13 . . 2 16 . . . . 15 13 . 7 13 5 3 . Catastrophic 31 | . . . . . 2 . 4 . 1 4 2 1 3 . . 1 3 . . . . 3 2 . . 2 2 1 . Database Lockouts 1 | . . . . . 1 . . . . . . . . . . . . . . . . . . . . . . . . Manual 143 | . 16 . . . 18 . 14 . . 19 13 3 13 1 . 1 8 . . . . 9 7 2 7 5 3 4 . Terminals 199 | . 19 . . . 23 . 15 . 2 21 4 4 21 . . 5 13 . . . 1 9 21 3 10 20 3 5 . Fabricators 11 | . . . . . . . . . . . . . . . . . 5 . . . . 5 1 . . . . . . Repair Stations 24 | . . . . . 6 . . . . 9 . . . . . . 4 . . . . 5 . . . . . . . Recycling Units 40 | . 5 . . . 2 . 2 . 1 5 16 . 2 . . . 4 . . . . . . . . . 3 . . Scanalyzers 26 | . . . . . 2 . 2 . . . . 3 . . . . 15 . . . . . 1 . 3 . . . . Garrison Access 8 | . . . . . 1 . 1 . . 1 . . . . . 1 1 . . . . . 1 1 . . 1 . . Terminal Hacks 56 | . 8 . 1 1 6 . 2 . 2 6 . 1 5 . . 3 3 . 1 . 1 1 6 1 2 4 1 1 . Record 2 | . . . 1 . . . . . . . . . . . . . . . . . 1 . . . . . . . . Part Schematic 1 | . . . . . . . . . . 1 . . . . . . . . . . . . . . . . . . . Robot Analysis 6 | . 4 . . . 1 . . . . . . . . . . . . . . . . . . . . 1 . . . Prototype ID Bank 8 | . 2 . . . 2 . . . 1 1 . . . . . . . . . . . . 1 . 1 . . . . Open Door 14 | . . . . 1 . . . . . 2 . . 4 . . . . . 1 . . . 1 . 1 3 . 1 . Branch Access Points 5 | . 1 . . . . . . . 1 . . 1 . . . . 1 . . . . 1 . . . . . . . Emergency Access Points 1 | . . . . . . . . . . . . . . . . . . . . . . . 1 . . . . . . Terminal Index 1 | . . . . . . . . . . . . . . . . . . . . . . . . . . . 1 . . Alert Level 1 | . . . . . 1 . . . . . . . . . . . . . . . . . . . . . . . . Unreport Threat 4 | . . . . . . . . . . . . . 1 . . . 2 . . . . . 1 . . . . . . Locate Traps 7 | . 1 . . . 1 . 1 . . 1 . . . . . 1 . . . . . . 1 1 . . . . . Hauler Manifests 2 | . . . . . 1 . . . . . . . . . . . . . . . . . 1 . . . . . . Registered Components 1 | . . . . . . . 1 . . . . . . . . . . . . . . . . . . . . . . Zone Layout 3 | . . . . . . . . . . 1 . . . . . 2 . . . . . . . . . . . . . Fabricator Hacks 6 | . . . . . . . . . . . . . . . . . 2 . . . . 3 1 . . . . . . Network Status 3 | . . . . . . . . . . . . . . . . . 1 . . . . 1 1 . . . . . . Load Schematic 2 | . . . . . . . . . . . . . . . . . 1 . . . . 1 . . . . . . . Build 1 | . . . . . . . . . . . . . . . . . . . . . . 1 . . . . . . . Repair Station Hacks 14 | . . . . . 6 . . . . 5 . . . . . . 3 . . . . . . . . . . . . Scan Component 8 | . . . . . 3 . . . . 3 . . . . . . 2 . . . . . . . . . . . . Repair 6 | . . . . . 3 . . . . 2 . . . . . . 1 . . . . . . . . . . . . Recycling Unit Hacks 10 | . 2 . . . . . 1 . . 2 4 . . . . . 1 . . . . . . . . . . . . Retrieve Components 10 | . 2 . . . . . 1 . . 2 4 . . . . . 1 . . . . . . . . . . . . Scanalyzer 19 | . . . . . 2 . 2 . . . . 1 . . . . 12 . . . . . 1 . 1 . . . . Insert Component 11 | . . . . . 2 . 1 . . . . 1 . . . . 5 . . . . . 1 . 1 . . . . Analyze 8 | . . . . . . . 1 . . . . . . . . . 7 . . . . . . . . . . . . Garrison Access Hacks 8 | . . . . . 1 . 1 . . 1 . . . . . 1 1 . . . . . 1 1 . . 1 . . Unlock Access 2 | . . . . . 1 . 1 . . . . . . . . . . . . . . . . . . . . . . Seal Access 6 | . . . . . . . . . . 1 . . . . . 1 1 . . . . . 1 1 . . 1 . . Unauthorized Hacks 50 | . 5 . . . 4 . 5 . . 7 8 1 5 . . . 4 . . . . . 2 2 3 3 . 1 . Terminals 33 | . 3 . . . 3 . 4 . . 4 1 1 4 . . . 3 . . . . . 2 2 2 3 . 1 . Botnet 22 | . 2 . . . 2 . 3 . . 2 1 1 2 . . . 2 . . . . . 2 1 1 2 . 1 . Disrupt 1 | . . . . . . . . . . . . . 1 . . . . . . . . . . . . . . . . Operators 10 | . 1 . . . 1 . 1 . . 2 . . 1 . . . 1 . . . . . . 1 1 1 . . . Fabricators . | . . . . . . . . . . . . . . . . . . . . . . . . . . . . . . Repair Stations . | . . . . . . . . . . . . . . . . . . . . . . . . . . . . . . Recycling Units 16 | . 2 . . . 1 . 1 . . 3 7 . 1 . . . 1 . . . . . . . . . . . . Monitor 2 | . . . . . . . . . . . 2 . . . . . . . . . . . . . . . . . . Reject 4 | . . . . . . . . . . . 4 . . . . . . . . . . . . . . . . . . Recyclers 3 | . . . . . . . . . . 1 1 . . . . . 1 . . . . . . . . . . . . Mask 3 | . . . . . . . . . . 2 . . 1 . . . . . . . . . . . . . . . . Tunnel 4 | . 2 . . . 1 . 1 . . . . . . . . . . . . . . . . . . . . . . Scanalyzers 1 | . . . . . . . . . . . . . . . . . . . . . . . . . 1 . . . . Researchers 1 | . . . . . . . . . . . . . . . . . . . . . . . . . 1 . . . . Garrison Access . | . . . . . . . . . . . . . . . . . . . . . . . . . . . . . . Data Cores Recovered 2 | . . . . . 1 . . . . . . . . . . . . . . . . . . . . . . 1 . Used 2 | . . . . . 1 . . . . . . . . . . . . . . . . . . . . . . 1 . Hacking Detections 83 | . 7 . . . 9 . 8 . 2 10 7 3 9 . . 3 8 . . . . 4 4 1 2 3 2 1 . Full Trace Events 7 | . . . . . 1 . . . . 2 . . 2 . . . . . . . . 2 . . . . . . . Feedback Events 1 | . . . . . . . . . . 1 . . . . . . . . . . . . . . . . . . . Corruption 1 | . . . . . . . . . . 1 . . . . . . . . . . . . . . . . . . . Feedback Blocked . | . . . . . . . . . . . . . . . . . . . . . . . . . . . . . . Robot Schematics Acquired 1 | . . . . . . . . . . . . . . . . . . . . . . . 1 . . . . . . Robots Built . | . . . . . . . . . . . . . . . . . . . . . . . . . . . . . . Authchips . | . . . . . . . . . . . . . . . . . . . . . . . . . . . . . . Time . | . . . . . . . . . . . . . . . . . . . . . . . . . . . . . . Total Robot Build Rating . | . . . . . . . . . . . . . . . . . . . . . . . . . . . . . . Part Schematics Acquired 6 | . . . . . . . 1 . . 1 . . . . . . 3 . . . . . 1 . . . . . . Parts Built 1 | . . . . . . . . . . . . . . . . . . . . . . 1 . . . . . . . Authchips . | . . . . . . . . . . . . . . . . . . . . . . . . . . . . . . Time 93 | . . . . . . . . . . . . . . . . . . . . . . 93 . . . . . . . Total Part Build Rating 7 | . . . . . . . . . . . . . . . . . . . . . . 7 . . . . . . . Parts Repaired 6 | . . . . . 3 . . . . 2 . . . . . . 1 . . . . . . . . . . . . Time 212 | . . . . . 114 . . . . 44 . . . . . . 54 . . . . . . . . . . . . Parts Recycled . | . . . . . . . . . . . . . . . . . . . . . . . . . . . . . . Recycled Matter . | . . . . . . . . . . . . . . . . . . . . . . . . . . . . . . Retrieved Matter . | . . . . . . . . . . . . . . . . . . . . . . . . . . . . . . Retrieved Components 46 | . 18 . . . . . . . . 18 9 . . . . . 1 . . . . . . . . . . . . Parts Scanalyzed 5 | . . . . . . . 1 . . . . . . . . . 4 . . . . . . . . . . . . Part Schematics Acquired 4 | . . . . . . . 1 . . . . . . . . . 3 . . . . . . . . . . . . Parts Damaged 1 | . . . . . . . . . . . . . . . . . 1 . . . . . . . . . . . . Bothacking | -11 -10 -10 -10 -9 -8 -8 -8 -8 -7 -7 -7 -5 -5 -5 -5 -5 -4 -4 -4 -4 -3 -3 -3 -2 -2 -2 -1 -1 -1 ------------ Run | Scr Mat Min Exi Min Mat Gar Mat Gar Fac Sto Rec Fac Ext Cet Arc Hub Fac Upp Upp War Pro Res Tes Res Qua Sec Acc Com Ac0 Used RIF Installer 2 | . . . . . . 1 . 1 . . . . . . . . . . . . . . . . . . . . . Alert ID Control 1 | . . . . . . . . 1 . . . . . . . . . . . . . . . . . . . . . Robots Hacked 3 | . . . . . . . . . 2 . . 1 . . . . . . . . . . . . . . . . . Non-combat 1 | . . . . . . . . . . . . 1 . . . . . . . . . . . . . . . . . Combat 2 | . . . . . . . . . 2 . . . . . . . . . . . . . . . . . . . . Robot Hacks Applied 5 | . . . . . . . . . 3 . . 2 . . . . . . . . . . . . . . . . . parse_system 1 | . . . . . . . . . 1 . . . . . . . . . . . . . . . . . . . . no_distress 1 | . . . . . . . . . . . . 1 . . . . . . . . . . . . . . . . . purge_threat 1 | . . . . . . . . . . . . 1 . . . . . . . . . . . . . . . . . streamctrl_high 1 | . . . . . . . . . 1 . . . . . . . . . . . . . . . . . . . . formatsys_high 1 | . . . . . . . . . 1 . . . . . . . . . . . . . . . . . . . . Relay Couplers Released 10 | . . . . . . 4 . . . . . . . . . 3 . . . . . 3 . . . . . . . Machine Destruction 7 | . . . . . . 4 . . . . . . . . . 3 . . . . . . . . . . . . . Programmers 3 | . . . . . . . . . . . . . . . . . . . . . . 3 . . . . . . . Attached 3 | . . . . . . . . . 2 . . 1 . . . . . . . . . . . . . . . . . Fabnet Peak Effective % . | . . . . . . . . . . . . . . . . . . . . . . . . . . . . . . Robots Rewired 22 | . . . . . . . . . . . 10 . 10 . . . . 2 . . . . . . . . . . . Allies Hacked 1 | . . . . . . . . . . . . 1 . . . . . . . . . . . . . . . . . Hacks Repelled . | . . . . . . . . . . . . . . . . . . . . . . . . . . . . . . Allies | -11 -10 -10 -10 -9 -8 -8 -8 -8 -7 -7 -7 -5 -5 -5 -5 -5 -4 -4 -4 -4 -3 -3 -3 -2 -2 -2 -1 -1 -1 -------- Run | Scr Mat Min Exi Min Mat Gar Mat Gar Fac Sto Rec Fac Ext Cet Arc Hub Fac Upp Upp War Pro Res Tes Res Qua Sec Acc Com Ac0 Total Allies 102 | . . . . . . . . . 2 . 10 . 18 5 . . . 2 . . . . . . . . 16 49 . Largest Group 11 | . . . . . . . . . 2 1 10 6 11 8 8 5 . 2 2 1 1 . . . . . 11 9 . Highest-Rated Group 657 | . . . . . . . . . 52 32 269 155 314 657 657 473 . 95 95 42 42 . . . . . 159 129 . Highest-Rated Ally 159 | . . . . . . . . . 32 32 40 40 159 159 137 96 . 48 48 42 42 . . . . . 15 15 . Total Orders 15 | . . . . . . . . . . 10 . 2 . . . . . . . . . 3 . . . . . . . EXPLORE 13 | . . . . . . . . . . 10 . 1 . . . . . . . . . 2 . . . . . . . RETURN 2 | . . . . . . . . . . . . 1 . . . . . . . . . 1 . . . . . . . Ally Attacks 410 | . . . . . . . . . 16 2 41 14 113 70 26 33 . 2 24 . 2 . . . . . 9 58 . Total Damage 10283 | . . . . . . . . . 599 83 1124 271 1697 1829 1678 1073 . 57 588 . 21 . . . . . 87 1176 . Kills 80 | . . . . . . . . . 6 1 17 2 18 13 11 7 . . 3 . . . . . . . . 2 . Allies Corrupted 2 | . . . . . . . . . . . . . 1 . . . . . . . . . . . . . . 1 . Allies Melted . | . . . . . . . . . . . . . . . . . . . . . . . . . . . . . . Intel | -11 -10 -10 -10 -9 -8 -8 -8 -8 -7 -7 -7 -5 -5 -5 -5 -5 -4 -4 -4 -4 -3 -3 -3 -2 -2 -2 -1 -1 -1 ------- Run | Scr Mat Min Exi Min Mat Gar Mat Gar Fac Sto Rec Fac Ext Cet Arc Hub Fac Upp Upp War Pro Res Tes Res Qua Sec Acc Com Ac0 Robot Analysis Total 6 | . 4 . . . 1 . . . . . . . . . . . . . . . . . . . . 1 . . . Derelict Logs Recovered 7 | . . . . 2 . . . . . . . . . . . . . 3 2 . . . . . . . . . . Drone Launches 25 | . . . . . . . . . . 21 . 2 . . . . . . . . . 2 . . . . . . . Drone Recoveries 11 | . . . . . . . . . . 7 . 2 . . . . . . . . . 2 . . . . . . . Exploration | -11 -10 -10 -10 -9 -8 -8 -8 -8 -7 -7 -7 -5 -5 -5 -5 -5 -4 -4 -4 -4 -3 -3 -3 -2 -2 -2 -1 -1 -1 ------------- Run | Scr Mat Min Exi Min Mat Gar Mat Gar Fac Sto Rec Fac Ext Cet Arc Hub Fac Upp Upp War Pro Res Tes Res Qua Sec Acc Com Ac0 Turns Passed 28237 | 274 1405 166 76 173 3457 314 2457 816 951 1619 841 949 1399 398 79 530 1300 1576 1262 53 1077 880 1262 498 811 1546 326 1379 363 Spaces Moved 15242 | 125 695 128 146 115 1155 172 687 202 375 622 403 510 462 148 40 234 594 973 806 37 465 314 655 291 505 1128 624 1719 912 Core 337 | 21 . 88 146 82 . . . . . . . . . . . . . . . . . . . . . . . . . Treads 5772 | 104 695 40 . . 565 . 606 172 . . . . 131 148 40 234 594 973 806 37 465 110 . . . 52 . . . Legs 6216 | . . . . 24 323 . . . . . . . 7 . . . . . . . . 204 655 291 505 973 609 1713 912 Wheels 2793 | . . . . 9 267 172 81 30 375 622 403 510 324 . . . . . . . . . . . . . . . . Hover . | . . . . . . . . . . . . . . . . . . . . . . . . . . . . . . Flight . | . . . . . . . . . . . . . . . . . . . . . . . . . . . . . . Fastest Speed 30 | 50 160 50 50 50 130 145 145 160 123 130 138 138 155 160 160 160 145 145 145 145 145 145 105 105 105 30 30 30 30 Average Speed 137 | 143 160 84 50 69 231 145 309 373 166 152 141 146 194 216 160 161 152 145 145 145 212 195 152 105 108 86 30 30 30 Slowest Speed 570 | 160 160 160 50 130 570 145 330 410 260 220 165 180 560 240 160 240 160 145 145 145 225 470 190 105 172 177 30 90 30 Overloaded Moves . | . . . . . . . . . . . . . . . . . . . . . . . . . . . . . . Propulsion Burnouts . | . . . . . . . . . . . . . . . . . . . . . . . . . . . . . . Robots Hopped . | . . . . . . . . . . . . . . . . . . . . . . . . . . . . . . Cave-ins Triggered . | . . . . . . . . . . . . . . . . . . . . . . . . . . . . . . Teleports 2 | . . . . . . . . . . . . . . . . . . . . . . . . . . . . 1 1 Spacefolds 23 | . . . . . . . . . . . . . . . . . . . . . . . . . . 14 7 2 . Microwarps 3 | . . . . . . . . . . . . . . . . . . . . . . . . . . 3 . . . Exploration Rate (%) 54 | 7 100 40 50 33 79 37 65 54 17 94 93 14 75 66 62 35 20 96 98 10 76 11 76 15 76 74 23 75 60 Regions Visited 29 Branch Regions 18 Pre-discovered Areas 5 | . 2 . 1 . 1 . 1 . . . . . . . . . . . . . . . . . . . . . . Known Exits Taken 19 | . 1 . . . 1 . 1 . 1 1 1 1 . 1 1 1 1 1 1 1 1 1 1 1 1 . . . . Unknown Exits Taken 8 | 1 . 1 1 1 . . . . . . . . 1 . . . . . . . . . . . . 1 1 1 . Scrap Searched 9 | . . . . 1 . . . . . . . . . . . . . 4 2 . 2 . . . . . . . . Spaces Dug 422 | . . . . . . . 1 11 6 2 4 9 28 . . 4 8 3 . . 7 5 15 20 11 12 133 60 83 Terrain Destroyed 2900 | . . 9 . . . . 11 66 16 48 11 20 83 2 . 334 53 41 12 . 18 27 28 25 17 42 181 1416 440 Melee 3 | . . . . . . . 1 . 2 . . . . . . . . . . . . . . . . . . . . Projectile 1532 | . . . . . . . 10 . 14 48 11 20 15 2 . 27 53 16 12 . 14 27 28 25 17 42 163 548 440 AOE 1365 | . . 9 . . . . . 66 . . . . 68 . . 307 . 25 . . 4 . . . . . 18 868 . Terrain Rammed . | . . . . . . . . . . . . . . . . . . . . . . . . . . . . . . Walls Destroyed . | . . . . . . . . . . . . . . . . . . . . . . . . . . . . . . Machines Disabled . | . . . . . . . . . . . . . . . . . . . . . . . . . . . . . . Actions | -11 -10 -10 -10 -9 -8 -8 -8 -8 -7 -7 -7 -5 -5 -5 -5 -5 -4 -4 -4 -4 -3 -3 -3 -2 -2 -2 -1 -1 -1 --------- Run | Scr Mat Min Exi Min Mat Gar Mat Gar Fac Sto Rec Fac Ext Cet Arc Hub Fac Upp Upp War Pro Res Tes Res Qua Sec Acc Com Ac0 Total 20981 | 168 911 156 148 205 1687 214 905 235 587 1064 661 642 768 208 55 317 940 1130 900 36 552 496 882 482 768 1557 733 2573 1001 Wait 2669 | 3 133 . . 77 293 19 115 3 61 265 91 32 75 7 16 14 127 48 28 . 30 74 30 140 108 149 77 640 14 Move 15116 | 124 694 127 145 114 1154 171 687 201 374 621 402 509 461 147 39 233 593 972 805 36 464 313 654 290 504 1042 615 1714 911 Hop . | . . . . . . . . . . . . . . . . . . . . . . . . . . . . . . Pick Up 298 | 7 16 1 1 5 39 4 6 1 27 15 4 10 10 9 . 5 18 . 3 . 1 12 20 2 17 52 1 8 4 Fast Attach 158 | 6 1 . . 2 25 . 2 . 2 4 1 4 15 5 . 6 4 1 . . . 12 5 . 16 26 12 6 3 Attach 122 | 1 1 8 1 3 2 1 1 3 11 9 . 5 8 4 . . 10 3 1 . 4 9 5 2 5 18 1 5 1 Detach 41 | . . . 1 1 2 . 1 . 2 . 1 2 2 . . 1 2 . . . . 5 4 . 3 8 . 5 1 Swap 226 | . 5 2 . 1 14 . 14 4 28 11 . 10 15 3 . 14 16 4 . . . 4 28 6 10 29 . 7 1 Drop 298 | . 12 . . . 30 3 9 . 18 11 3 9 13 16 . 7 14 . 2 . . 7 26 3 36 49 10 14 6 Fire 1756 | 27 49 18 . 2 128 16 69 19 62 121 11 37 94 17 . 37 156 85 61 . 53 60 100 39 65 184 17 169 60 Melee 7 | . . . . . . . 1 . 2 . . . . . . . . . . . . . . . 4 . . . . Ram . | . . . . . . . . . . . . . . . . . . . . . . . . . . . . . . Kick . | . . . . . . . . . . . . . . . . . . . . . . . . . . . . . . Crush . | . . . . . . . . . . . . . . . . . . . . . . . . . . . . . . Escape Stasis 71 | . . . . . . . . 4 . . . 24 28 . . . . . . . . . 10 . . . . 5 . Rewire 212 | . . . . . . . . . . . 148 . 47 . . . . 17 . . . . . . . . . . . Trap . | . . . . . . . . . . . . . . . . . . . . . . . . . . . . . . Miscellaneous 7 | . . . . . . . . . . 7 . . . . . . . . . . . . . . . . . . . Route ------- -11/Scrapyard -10/Materials (discovered 4 exits: [*Mat x3] / *Min) -10/Mines -10/Exiles -9/Mines -8/Materials (discovered 4 exits: *Fac x3 / Gar) -8/Garrison -8/Materials (discovered 3 exits: *Fac x2 / Gar) -8/Garrison (discovered 2 exits: *Fac x2) -7/Factory (discovered 4 exits: *Sto x2 / Low x2) -7/Storage (discovered 2 exits: [*Fac] / *Rec) -7/Recycling -5/Factory (discovered 4 exits: Upp x2 / *Ext x2) -5/Extension (discovered 2 exits: *Fac / *Cet) -5/Cetus (discovered 2 exits: *Fac / *Arc) -5/Archives -5/Hub_04(d) -4/Factory (discovered 2 exits: *Upp x2) -4/Upper Caves -4/Upper Caves (discovered 2 exits: *Res / *War) -4/Warlord -3/Proximity Caves -3/Research (discovered 4 exits: *Res / Arm / *Tes x2) -3/Testing -2/Research -2/Quarantine -2/Section 7 -1/Access (discovered 2 exits: [Sur] / *Com) -1/Command (discovered 3 exits: [*Sur x2] / [*Ac0]) -1/Access_0 Near Former Tau Ceti IV History --------- Turn | Location | Event 6 | -11/Scrapyard | Discovered new exit (range 16) 275 | -11/Scrapyard | Entered Materials 307 | -10/Materials | Build established: Mutant 474 | -10/Materials | Discovered new exit (range 16) 820 | -10/Materials | Identified exit to Mines 949 | -10/Materials | Discovered new exit (range 13) 1354 | -10/Materials | Discovered new exit (range 3) 1680 | -10/Materials | Entered Mines 1742 | -10/Mines | Assembled infested the area 1774 | -10/Mines | Core integrity fell below 50% 1795 | -10/Mines | Core integrity fell below 20% 1797 | -10/Mines | Released all parts (4) 1827 | -10/Mines | Lost 8 parts (3n1u4w) 1828 | -10/Mines | A weapon hastily lodged in a ceiling crevice suddenly fell to the ground 1844 | -10/Mines | Deemed a non-threat by the Exiles lab entrance 1844 | -10/Mines | Discovered new exit (range 5) 1846 | -10/Mines | Entered Exiles 1859 | -10/Exiles | Met 8R-AWN 1867 | -10/Exiles | Met EX-HEX 1888 | -10/Exiles | Met EX-DEC 1890 | -10/Exiles | Learned location of Zion (-7) 1916 | -10/Exiles | Discovered new exit (range 10) 1922 | -10/Exiles | Entered Mines 1926 | -9/Mines | Learned location of 1 exit from Materials 1969 | -9/Mines | Met a Derelict who couldn't figure out how to use a Trap Extractor 1974 | -9/Mines | Discovered new exit (range 15) 2095 | -9/Mines | Entered Materials 2095 | -8/Materials | Evolved 4 slots: Utility x4 2096 | -8/Materials | Identified exit to Factory 2263 | -8/Materials | Garrison activated, responded to threat 2489 | -8/Materials | Build established: Scavenger-Mutant 2649 | -8/Materials | Identified exit to Garrison 2711 | -8/Materials | Garrison activated, responded to threat 3031 | -8/Materials | Discovered exit to Factory (range 16) 3836 | -8/Materials | Central database locked down 4011 | -8/Materials | Discovered exit to Factory (range 14) 4808 | -8/Materials | Build established: Mutant 5039 | -8/Materials | Repaired Hrd. Medium Armor Plating 5079 | -8/Materials | Repaired Arm. Treads 5118 | -8/Materials | Repaired Arm. Treads 5552 | -8/Materials | Entered Garrison 5560 | -8/Garrison | Installed Relay Interface Framework 5638 | -8/Garrison | Triggered checkpoint 5653 | -8/Garrison | Core integrity fell below 50% 5675 | -8/Garrison | Garrison Relay disabled 5734 | -8/Garrison | Triggered checkpoint 5823 | -8/Garrison | Spotted B-75 Beast 5856 | -8/Garrison | Discovered new exit (range 8) 5866 | -8/Garrison | Entered Materials 6258 | -8/Materials | Discovered exit to Factory (range 3) 7123 | -8/Materials | Core integrity fell below 20% 7938 | -8/Materials | Discovered exit to Factory (range 20) 8220 | -8/Materials | Garrison activated, responded to threat 8323 | -8/Materials | Identified exit to Garrison 8323 | -8/Materials | Entered Garrison 8371 | -8/Garrison | Triggered checkpoint 8373 | -8/Garrison | Triggered checkpoint 8402 | -8/Garrison | Triggered checkpoint 8426 | -8/Garrison | Destroyed 12 combat bots 8695 | -8/Garrison | Discovered exit to Factory (range 14) 9060 | -8/Garrison | Discovered exit to Factory (range 9) 9121 | -8/Garrison | Expanded RIF knowledge: Alert ID Control 9139 | -8/Garrison | Entered Factory 9139 | -7/Factory | Evolved 2 slots: Propulsion x2 9140 | -7/Factory | Identified exit to Storage 9641 | -7/Factory | Lost 3 parts (1p1n1u) 9703 | -7/Factory | Identified exit to Lower Caves 9770 | -7/Factory | Build established: Scavenger-Mutant 10090 | -7/Factory | Entered Storage 10090 | -7/Storage | Accompanied by 1 ally 10385 | -7/Storage | Repaired Hrd. Heavy Armor Plating 10577 | -7/Storage | Repaired Med. Treads 11039 | -7/Storage | Found Prototype Launcher 11039 | -7/Storage | Identified Rocket Array 11047 | -7/Storage | Found Rocket Array 11050 | -7/Storage | Found Rocket Array 11053 | -7/Storage | Found Rocket Array 11121 | -7/Storage | Found Rocket Array 11135 | -7/Storage | Used back door to open Recycling access 11135 | -7/Storage | Discovered new exit (range 4) 11319 | -7/Storage | Discovered new exit (range 16) 11690 | -7/Storage | First assault squad dispatched 11707 | -7/Storage | Identified exit to Recycling 11709 | -7/Storage | Entered Recycling 11763 | -7/Recycling | Spotter reported a threat 11844 | -7/Recycling | Spotter reported a threat 11851 | -7/Recycling | Spotter reported a threat 11965 | -7/Recycling | Spotter reported a threat 11982 | -7/Recycling | Spotter reported a threat 12066 | -7/Recycling | Spotter reported a threat 12076 | -7/Recycling | Spotter reported a threat 12192 | -7/Recycling | Discovered new exit (range 15) 12237 | -7/Recycling | Spotter reported a threat 12240 | -7/Recycling | Spotter reported a threat 12255 | -7/Recycling | Spotter reported a threat 12273 | -7/Recycling | Spotter reported a threat 12300 | -7/Recycling | Spotter reported a threat 12300 | -7/Recycling | Spotter reported a threat 12349 | -7/Recycling | Spotter reported a threat 12362 | -7/Recycling | Spotter reported a threat 12362 | -7/Recycling | Spotter reported a threat 12365 | -7/Recycling | Spotter reported a threat 12377 | -7/Recycling | Build established: Commander-Mutant 12403 | -7/Recycling | Spotter reported a threat 12418 | -7/Recycling | Spotter reported a threat 12418 | -7/Recycling | Spotter reported a threat 12419 | -7/Recycling | Spotter reported a threat 12459 | -7/Recycling | Identified exit to Factory 12472 | -7/Recycling | Spotter reported a threat 12550 | -7/Recycling | Entered Factory 12550 | -5/Factory | Accompanied by 6 allies 12550 | -5/Factory | Evolved 4 slots: Power x1, Propulsion x2, Utility x1 12850 | -5/Factory | Search patrols dispatched 12927 | -5/Factory | Build established: Scavenger-Mutant 12966 | -5/Factory | Identified exit to Upper Caves 12966 | -5/Factory | Identified exit to Extension 13150 | -5/Factory | Search patrols dispatched 13153 | -5/Factory | P-70 Sage assimilated allied Gladiator 4b 13158 | -5/Factory | P-70 Sage assimilated allied Commando 4a 13160 | -5/Factory | P-70 Sage assimilated allied Excavator 4a 13450 | -5/Factory | Search patrols dispatched 13488 | -5/Factory | P-70 Sage assimilated allied Angel 4a 13499 | -5/Factory | Entered Extension 13645 | -5/Extension | Rescued a captive Derelict 13646 | -5/Extension | Rescued a captive Derelict 14024 | -5/Extension | Disrupted transfer network 14060 | -5/Extension | Spotted B-75 Beast 14153 | -5/Extension | Destroyed B-75 Beast 14158 | -5/Extension | Lost 3 parts (3n) 14165 | -5/Extension | Spotted B-75 Beast 14186 | -5/Extension | Destroyed B-75 Beast 14471 | -5/Extension | Rescued a captive Derelict 14472 | -5/Extension | Rescued a captive Derelict 14580 | -5/Extension | Rescued a captive Derelict 14581 | -5/Extension | Rescued a captive Derelict 14666 | -5/Extension | Rescued a captive Derelict 14784 | -5/Extension | Rescued A7 14876 | -5/Extension | Discovered new exit (range 10) 14878 | -5/Extension | Discovered new exit (range 6) 14898 | -5/Extension | Entered Cetus 14898 | -5/Cetus | Accompanied by 6 allies (A7) 14903 | -5/Cetus | Acquired a Cetus Manufacturing Module code from A7 14929 | -5/Cetus | Spotted Cetus Guard 14929 | -5/Cetus | Spotted Cetus Guard 14931 | -5/Cetus | Spotted Cetus Guard 14934 | -5/Cetus | Allies destroyed Cetus Guard 14936 | -5/Cetus | Spotted Cetus Guard 14939 | -5/Cetus | Allies destroyed Cetus Guard 14942 | -5/Cetus | Destroyed Cetus Guard 14945 | -5/Cetus | Allies destroyed Cetus Guard 15024 | -5/Cetus | Door terminal overloaded 15064 | -5/Cetus | Started Cetus Manufacturing Module 15079 | -5/Cetus | Escorted A7 to Cetus Mainframe 15089 | -5/Cetus | Manufactured an Enhanced Grunt 15105 | -5/Cetus | Discovered new exit (range 15) 15114 | -5/Cetus | Manufactured an Enhanced Grunt 15139 | -5/Cetus | Manufactured an Enhanced Grunt 15144 | -5/Cetus | Spotted Cetus Guard 15144 | -5/Cetus | Spotted Cetus Guard 15146 | -5/Cetus | Destroyed Cetus Guard 15147 | -5/Cetus | Spotted Cetus Guard 15150 | -5/Cetus | Spotted Cetus Guard 15153 | -5/Cetus | Destroyed Cetus Guard 15164 | -5/Cetus | Manufactured an Enhanced Grunt 15165 | -5/Cetus | Destroyed Cetus Guard 15165 | -5/Cetus | Allies destroyed Cetus Guard 15177 | -5/Cetus | Discovered new exit (range 15) 15189 | -5/Cetus | Manufactured an Enhanced Grunt 15193 | -5/Cetus | Met Revision 17 15289 | -5/Cetus | Identified exit to Archives 15296 | -5/Cetus | Entered Archives 15296 | -5/Archives | Accompanied by 8 allies (A7) 15301 | -5/Archives | Received a hacking code to weaken MAIN.C 15314 | -5/Archives | Met Zhirov 15320 | -5/Archives | Reinforcements dispatched to Archives 15335 | -5/Archives | Discovered new exit (range 14) 15354 | -5/Archives | Identified exit to Hub_04(d) 15365 | -5/Archives | Reinforcements dispatched to Archives 15375 | -5/Archives | Entered Hub_04(d) 15375 | -5/Hub_04(d) | Accompanied by 5 allies 15481 | -5/Hub_04(d) | Found Prototype Device 15482 | -5/Hub_04(d) | Identified Exp. Thermal Shield 15823 | -5/Hub_04(d) | Network Hub disabled 15826 | -5/Hub_04(d) | Network Hub disabled 15885 | -5/Hub_04(d) | Spotted Lightning 15886 | -5/Hub_04(d) | Spotted Lightning 15889 | -5/Hub_04(d) | Spotted Lightning 15902 | -5/Hub_04(d) | Discovered new exit (range 2) 15904 | -5/Hub_04(d) | Identified exit to Factory 15905 | -5/Hub_04(d) | Entered Factory 15905 | -4/Factory | Evolved 2 slots: Utility x2 16246 | -4/Factory | Found Quantum Capacitor 16465 | -4/Factory | Repaired Centrium Medium Armor Plating 16607 | -4/Factory | Destroyed 7 combat bots 16863 | -4/Factory | Spotted B-86 Titan 16891 | -4/Factory | Destroyed B-86 Titan 16967 | -4/Factory | Found Hvy. Reflective Plating 17082 | -4/Factory | Discovered new exit (range 15) 17096 | -4/Factory | Identified exit to Upper Caves 17106 | -4/Factory | Found Prototype Processor 17139 | -4/Factory | Identified Exp. Terrain Scan Processor 17205 | -4/Factory | Entered Upper Caves 17375 | -4/Upper Caves | Learned Research emergency access door positions 17410 | -4/Upper Caves | Learned Research security intel 17699 | -4/Upper Caves | Attracted the attention of an 0b10 outpost 17776 | -4/Upper Caves | Lost 3 parts (1p1u1w) 18033 | -4/Upper Caves | Build established: Mutant 18643 | -4/Upper Caves | Attracted the attention of an 0b10 checkpoint 18763 | -4/Upper Caves | Discovered new exit (range 15) 18780 | -4/Upper Caves | Identified exit to Upper Caves 18781 | -4/Upper Caves | Entered another Upper Caves area 18781 | -4/Upper Caves | Accompanied by 2 allies 18793 | -4/Upper Caves | Discovered new exit (range 9) 18805 | -4/Upper Caves | Identified exit to Research 19118 | -4/Upper Caves | Learned Research machine intel 19132 | -4/Upper Caves | Encountered a Warlord checkpoint 19256 | -4/Upper Caves | Spotted B-86 Titan 19271 | -4/Upper Caves | Allies destroyed B-86 Titan 19495 | -4/Upper Caves | Learned Research stockpile data 19861 | -4/Upper Caves | Discovered new exit (range 7) 19867 | -4/Upper Caves | Identified exit to Warlord 20043 | -4/Upper Caves | Ambushed by wild Derelicts 20043 | -4/Upper Caves | Entered Warlord 20043 | -4/Warlord | Accompanied by 1 ally 20081 | -4/Warlord | Discovered new exit (range 12) 20094 | -4/Warlord | Identified exit to Proximity Caves 20096 | -4/Warlord | Entered Proximity Caves 20096 | -3/Proximity Caves | Accompanied by 1 ally 20795 | -3/Proximity Caves | Attracted the attention of an 0b10 checkpoint 21149 | -3/Proximity Caves | Discovered exit to Research (range 16) 21162 | -3/Proximity Caves | Spotted B-86 Titan 21173 | -3/Proximity Caves | Entered Research 21173 | -3/Research | Evolved 2 slots: Utility x2 21177 | -3/Research | Loaded intel: 125 machine locations 21209 | -3/Research | Identified exit to Armory 21209 | -3/Research | Identified exit to Testing 21287 | -3/Research | Lost 3 parts (1p1n1u) 21373 | -3/Research | Revision forces began assault on 0b10 21439 | -3/Research | Discovered new exit (range 14) 21462 | -3/Research | Met up with Revision 17++ 21500 | -3/Research | Found Enh. Force Lance 21573 | -3/Research | Identified exit to Research 21574 | -3/Research | Lost 4 parts (1p1n2u) 21580 | -3/Research | Fabricated Exp. Terrain Scan Processor (x1) 21816 | -3/Research | Build established: Scavenger-Mutant 21873 | -3/Research | Research terminal network offline 22053 | -3/Research | Entered Testing 22078 | -3/Testing | Found Prototype Processor 22081 | -3/Testing | Identified Spectral Analyzer 22197 | -3/Testing | Found Prototype Energy Cannon 22201 | -3/Testing | Identified Cld. Nova Cannon 22467 | -3/Testing | Found Prototype Energy Cannon 22511 | -3/Testing | Spotted PG-NOFZ9THCQD 22521 | -3/Testing | Destroyed PG-NOFZ9THCQD 22651 | -3/Testing | Spotted Striker 22651 | -3/Testing | Spotted Striker 22746 | -3/Testing | Found Prototype Protection 22749 | -3/Testing | Identified SHELL Armor 22752 | -3/Testing | Found Prototype Protection 22753 | -3/Testing | Identified Med. Regenerative Plating 22837 | -3/Testing | Identified Potential Cannon 22886 | -3/Testing | Discovered exit to Research (range 7) 22913 | -3/Testing | Found Prototype Leg 22913 | -3/Testing | Identified Myomer Exoskeleton 23000 | -3/Testing | Found Prototype Energy Gun 23001 | -3/Testing | Identified Warp Gun 23050 | -3/Testing | Spotted PY-P4CVXMNUVD 23214 | -3/Testing | Found Prototype Device 23215 | -3/Testing | Identified Thermal Barrier 23223 | -3/Testing | Found Unknown Device 23223 | -3/Testing | Identified Antimissile System 23315 | -3/Testing | Entered Research 23315 | -2/Research | Evolved 2 slots: Utility x2 23316 | -2/Research | Identified exit to Quarantine 23691 | -2/Research | Spotted B-90 Cyclops 23813 | -2/Research | Entered Quarantine 23938 | -2/Quarantine | Found Alien Artifact 23939 | -2/Quarantine | Identified Core Reset Matrix 23939 | -2/Quarantine | Used Core Reset Matrix 23943 | -2/Quarantine | Detected hypermatrix surge 23943 | -2/Quarantine | Sensed 6 artifacts in vicinity 23962 | -2/Quarantine | Found Sigix Broadsword 24063 | -2/Quarantine | Cryocooling Duct disabled 24078 | -2/Quarantine | Ambient heat levels rising (+20) 24078 | -2/Quarantine | Non-combat units ordered to evacuate 24122 | -2/Quarantine | Build established: Mutant 24125 | -2/Quarantine | Found Subatomic Replicator 24180 | -2/Quarantine | Found Core Stripper 24193 | -2/Quarantine | Spotted Alpha 7 24225 | -2/Quarantine | Destroyed Alpha 7 24253 | -2/Quarantine | Found Sigix Terminator 24409 | -2/Quarantine | Spotted Fortress 24529 | -2/Quarantine | Discovered new exit (range 5) 24532 | -2/Quarantine | Identified exit to Section 7 24624 | -2/Quarantine | Entered Section 7 24625 | -2/Section 7 | Sensed 22 artifacts in vicinity 24626 | -2/Section 7 | Spotted S7 Guard 24634 | -2/Section 7 | Found Core Regenerator 24650 | -2/Section 7 | Found Microwarp Drive 24831 | -2/Section 7 | Found Spacefold Activator 24881 | -2/Section 7 | Found Integrated Dissipator 24881 | -2/Section 7 | Installed Integrated Dissipator, increased core heat dissipation (+20) 24980 | -2/Section 7 | Spotted S7 Guard 24990 | -2/Section 7 | Found Core Membrane 24990 | -2/Section 7 | Installed Core Membrane, gained immunity to corruption 25008 | -2/Section 7 | Destroyed S7 Guard 25050 | -2/Section 7 | Build established: Scavenger-Mutant 25070 | -2/Section 7 | Spotted Alpha 7 25100 | -2/Section 7 | Spotted Alpha 7 25129 | -2/Section 7 | Destroyed Alpha 7 25172 | -2/Section 7 | Destroyed Alpha 7 25179 | -2/Section 7 | Found Prototype Processor 25184 | -2/Section 7 | Found Prototype Processor 25192 | -2/Section 7 | Found Prototype Processor 25193 | -2/Section 7 | Identified Exp. Targeting Computer (x2) 25255 | -2/Section 7 | Spotted B-99 Colossus 25329 | -2/Section 7 | Found Core Expander 25368 | -2/Section 7 | Found LRC Armor 25368 | -2/Section 7 | Installed LRC Armor, increased core integrity (+250) 25412 | -2/Section 7 | Found Core Reset Matrix 25415 | -2/Section 7 | Sensed 14 artifacts in vicinity 25569 | -2/Section 7 | Spotted Executioner 25569 | -2/Section 7 | Spotted Executioner 25586 | -2/Section 7 | Found Terrabomb 25595 | -2/Section 7 | Found Hpw. Transdimensional Reconstructor 25598 | -2/Section 7 | Used Subatomic Replicator to replicate Core Expander 25605 | -2/Section 7 | Found Transdimensional Reconstructor 25654 | -2/Section 7 | Spotted Striker 25681 | -2/Section 7 | Spotted Striker 25695 | -2/Section 7 | Spotted Striker 25695 | -2/Section 7 | Spotted Striker 25710 | -2/Section 7 | Destroyed Striker 25736 | -2/Section 7 | Destroyed Striker 25746 | -2/Section 7 | Found Sigix Shearcannon 25769 | -2/Section 7 | Found Sigix Sheargun 25776 | -2/Section 7 | Found Sigix Sheargun 25782 | -2/Section 7 | Found Sigix Sheargun 25815 | -2/Section 7 | Spotted Executioner 25815 | -2/Section 7 | Spotted Executioner 25828 | -2/Section 7 | Core integrity fell below 50% 25848 | -2/Section 7 | Destroyed Executioner 25864 | -2/Section 7 | Destroyed Executioner 25884 | -2/Section 7 | Found Prototype Processor 25888 | -2/Section 7 | Identified Exp. Core Analyzer 25894 | -2/Section 7 | Found Exp. Core Analyzer 26006 | -2/Section 7 | Integrated with Sigix Exoskeleton 26009 | -2/Section 7 | Installed Core Expander, added new Power slot 26016 | -2/Section 7 | Identified Exp. Target Analyzer 26018 | -2/Section 7 | Installed Core Expander, added new Propulsion slot 26077 | -2/Section 7 | Destroyed Executioner 26081 | -2/Section 7 | Destroyed Executioner 26085 | -2/Section 7 | Found Exp. Core Analyzer 26130 | -2/Section 7 | Spotted Striker 26162 | -2/Section 7 | Discovered new exit (range 17) 26170 | -2/Section 7 | Entered Access 26170 | -1/Access | Evolved 2 slots: Utility x2 26174 | -1/Access | Found Prototype Device 26174 | -1/Access | Identified Beam Splitter 26175 | -1/Access | Emitted hypermatrix ping 26180 | -1/Access | Assembled emerged from beneath the floor 26202 | -1/Access | Found Quantum Capacitor 26277 | -1/Access | Assembled emerged from beneath the floor 26309 | -1/Access | Build established: Alien-Sigix 26385 | -1/Access | Found Prototype Device 26385 | -1/Access | Identified Femtoactuators 26420 | -1/Access | First assault squad dispatched 26444 | -1/Access | Discovered new exit (range 17) 26479 | -1/Access | Discovered new exit (range 18) 26496 | -1/Access | Entered Command 26501 | -1/Command | Emitted hypermatrix ping 26506 | -1/Command | Assembled emerged from beneath the floor 26520 | -1/Command | Discovered new exit (range 17) 26525 | -1/Command | Assembled emerged from beneath the floor 26588 | -1/Command | Fired Sigix Terminator 26588 | -1/Command | High security lockdown imminent 26588 | -1/Command | MAIN.C activated Command garrisons 26605 | -1/Command | Assembled emerged from beneath the floor 26622 | -1/Command | Destroyed 168 combat bots 26773 | -1/Command | Destroyed 31 combat bots 26829 | -1/Command | Destroyed 18 combat bots 26843 | -1/Command | Phase Generator disabled 26857 | -1/Command | Sigix Exoskeleton integrity reduced to 80% 26908 | -1/Command | Spotted Striker 26908 | -1/Command | Spotted Alpha 7 26908 | -1/Command | Spotted Executioner 26908 | -1/Command | Spotted B-99 Colossus 26909 | -1/Command | Spotted Executioner 26909 | -1/Command | Spotted Alpha 7 26913 | -1/Command | Spotted Executioner 26913 | -1/Command | Spotted Executioner 26914 | -1/Command | Spotted B-99 Colossus 26914 | -1/Command | Spotted Striker 26916 | -1/Command | Sigix Exoskeleton integrity reduced to 60% 26916 | -1/Command | Spotted M Guard 26916 | -1/Command | Spotted M Guard 26916 | -1/Command | Spotted Combat Programmer 26916 | -1/Command | Spotted Combat Programmer 26920 | -1/Command | Core integrity fell below 50% 26928 | -1/Command | Destroyed M Guard 26930 | -1/Command | Destroyed Combat Programmer 26931 | -1/Command | Destroyed Combat Programmer 26933 | -1/Command | Destroyed Striker 26936 | -1/Command | Destroyed Striker 26944 | -1/Command | Destroyed B-99 Colossus 26946 | -1/Command | Destroyed M Guard 26946 | -1/Command | All MAIN.C guards destroyed 26946 | -1/Command | Destroyed Executioner 26947 | -1/Command | Destroyed Executioner 26950 | -1/Command | Destroyed Executioner 26952 | -1/Command | Destroyed Alpha 7 26966 | -1/Command | Destroyed Alpha 7 26968 | -1/Command | Destroyed Executioner 26990 | -1/Command | Destroyed B-99 Colossus 26995 | -1/Command | Used Core Regenerator, restored core integrity (+462) 26998 | -1/Command | Found Prototype Device 27012 | -1/Command | Identified AEGIS Remote Shield 27024 | -1/Command | Found Prototype Reactor 27024 | -1/Command | Identified Zero-point Reactor 27032 | -1/Command | Destroyed 79 combat bots 27033 | -1/Command | Met MAIN.C 27037 | -1/Command | 0b10 Conduit disabled 27041 | -1/Command | Sigix Exoskeleton integrity reduced to 40% 27047 | -1/Command | MAIN.C's shell transforms into a squad of autonomous robots 27047 | -1/Command | Destroyed MAIN.C Shell 27047 | -1/Command | Spotted M Shell/Def 27047 | -1/Command | Spotted M Shell/Atk 27047 | -1/Command | Spotted M Shell/Def 27047 | -1/Command | Spotted M Shell/Atk 27047 | -1/Command | Spotted M Shell/Atk 27047 | -1/Command | Spotted M Shell/Def 27047 | -1/Command | Spotted M Shell/Atk 27047 | -1/Command | Spotted M Shell/Def 27049 | -1/Command | Spotted B-99 Colossus 27068 | -1/Command | Discovered new exit (range 17) 27083 | -1/Command | Found Prototype Device 27083 | -1/Command | Identified Exp. Focal Shield 27085 | -1/Command | Found Prototype Device 27085 | -1/Command | Identified Exp. System Purifier 27087 | -1/Command | Found Prototype Device 27087 | -1/Command | Identified Exp. Cloaking Device 27099 | -1/Command | Destroyed MAIN.C 27112 | -1/Command | Discovered new exit (range 31) 27112 | -1/Command | Discovered new exit (range 90) 27112 | -1/Command | Extracted map data and part IDs from MAIN.C's data core 27202 | -1/Command | Destroyed M Shell/Atk 27663 | -1/Command | Assembled emerged from beneath the floor 27683 | -1/Command | Assembled emerged from beneath the floor 27711 | -1/Command | Assembled emerged from beneath the floor 27757 | -1/Command | Assembled emerged from beneath the floor 27871 | -1/Command | Warped through subspace to slip node 27871 | -1/Command | Discovered new exit (range 5) 27875 | -1/Command | Entered Access_0 27876 | -1/Access_0 | Sensed 4 artifacts in vicinity 27876 | -1/Access_0 | Met Architect 27879 | -1/Access_0 | Destroyed A8 27882 | -1/Access_0 | Architect warped through subspace 27924 | -1/Access_0 | Subspace Access Node disabled 27932 | -1/Access_0 | Subspace Access Node disabled 27941 | -1/Access_0 | A6 warped into view 27996 | -1/Access_0 | Architect warped through subspace 28001 | -1/Access_0 | A5 warped into view 28004 | -1/Access_0 | Destroyed A5 28017 | -1/Access_0 | Destroyed A6 28022 | -1/Access_0 | Architect warped through subspace 28041 | -1/Access_0 | Found Hpw. Transdimensional Reconstructor 28057 | -1/Access_0 | Found Integrated Mediator 28057 | -1/Access_0 | Installed Integrated Mediator, increased core attachment efficiency. 28085 | -1/Access_0 | Architect warped through subspace 28119 | -1/Access_0 | Architect warped through subspace 28137 | -1/Access_0 | Subspace Access Node disabled 28145 | -1/Access_0 | Destroyed 11 combat bots 28151 | -1/Access_0 | A4 warped into view 28152 | -1/Access_0 | Subspace Access Node disabled 28225 | -1/Access_0 | Destroyed A2 28228 | -1/Access_0 | Extracted Singularity Gate Test 138-C access codes from A2's data core 28233 | -1/Access_0 | Destroyed Architect 28234 | -1/Access_0 | Architect triggered a singularity event 28234 | -1/Access_0 | Warped through subspace to slip node 28234 | -1/Access_0 | Discovered new exit (range 8) 28238 | *** | Escaped singularity! Last Messages --------------- 28228_ Acquired data core, extracted Singularity Gate Test 138-C access codes. 28230_ Quantum Shear penetrates Architect. 28230_ Penetrated by Quantum Shear. 28231_ Quantum Shear penetrates Architect. 28232_ Dropped Adv. Energy Well. 28232_ Quantum Shear penetrates Architect. 28232_ Penetrated by Quantum Shear. 28233_ Extracted 290 energy. 28233_ Quantum Shear penetrates Architect. 28233_ Architect: "If I can't win, no one wins!" 28233_ Architect destroyed. 28234_ A0_COM: Initiating irreversible singularity event. Goodbye. 28234_ Extracted 41 energy. 28234_ Warped through subspace, drawn to slip node. 28234_ EXIT=FOUND 28235_ A0_COM: 10. 28236_ A0_COM: 9. 28237_ A0_COM: 8. 28238_ A0_COM: 7. Map ----- +----------------------------------------------------+ | | | | | | | | | | | | | | | | | | | | | | | | | | | | | | | | | ???????????###########################???????????? | | ??????????#############################??????????? | | ??????????#############################??????????? | | ?????????###############################?????????? | | ????????#################################????????? | | ????????#################################????????? | | ????????#################################????????? | | ???????################## ################???????? | | ???????################# ###############???????? | | ???????################# X ###############???????? | | ???????################# ###############???????? | | ???????################ ###############???????? | | ??????################# #################??????? | | ???????################# ###############???????? | | ???????################ ###############???????? | | ??????################# #################??????? | | ??????################# ! ################??????? | | ???????################ ################???????? | | ???????################# ################???????? | | ???????###################################???????? | | ???????###################################???????? | | ???????###################################???????? | | ????????#################################????????? | | ????????#################################????????? | | ????????#################################????????? | | ?????????###############################?????????? | | ??????????#############################??????????? | | ??????????#############################??????????? | | ???????????###########################???????????? | | ????????????#########################????????????? | | ?????????????#######################?????????????? | | ???????????????###################???????????????? | | ????????????????#################????????????????? | | ???????????????????###########???????????????????? | +----------------------------------------------------+ Best States ------------- Heat Dissipation 180 Coolant Potential 100 Energy Generation 99 Energy Capacity 1000 Matter Stores 300 Matter Capacity 300 Sight Range 24 Robot Scan Range 18 Terrain Scan Range 16 Terrain Scan Density 1010 Jamming Range 14 Cloak Strength 4 Armor Coverage 2250 Resistance: KI 50 Resistance: TH 50 Resistance: EX 50 Resistance: EM 50 Resistance: I 50 Resistance: S 50 Resistance: P 50 Weapon Cycling 20 Evasion (%) 69 Targeting Accuracy 12 Target Analysis 14 Core Analysis 8 Recoil Reduction 6 Offensive Hacking 10 Relay Coupler Types 1 Relay Coupler Value 25 Item Schematics ----------------- None Robot Schematics ------------------ None Fabricated ------------ Exp. Terrain Scan Processor | x1 | -3/Research Alien Tech Used ----------------- Core Reset Matrix Core Stripper Integrated Dissipator Core Membrane Spacefold Activator LRC Armor Microwarp Drive Subatomic Replicator Sigix Broadsword Sigix Sheargun Sigix Exoskeleton Sigix Shearcannon Core Expander Sigix Terminator Core Regenerator High-powered Transdimensional Reconstructor Integrated Mediator Achievements -------------- WMD \\IAMDERELICT Challenges ------------ None Game ------ Seed TargetCloakTorch Manual? 0 Play Time 08:29:01 Cumulative 381.5 hours Start 2022.09.25 @ 15:13:57 End 2022.09.29 @ 13:36:16 Sessions 27 Manual Loads 0 Difficulty Rogue Special Mode None Game No. 63 Rogue 56 Adventurer 1 Explorer 6 Win Type 6 Total 27 Types 7/3/9/1/1/1/3/1/1 Lore% 90 Gallery% 91 Achievement% 78 Wizard Run 0 Options --------- ASCII 0 Keyboard 0 Movement Mouse Keybinds 0 Fullscreen 1 Font 18/SmallcapsGlow Map View 76x50 Tactical HUD 1 Map Filters NONE Filters NONE Steam 1 RUN: 7ed2c37e-a4b1-47ff-8d3d-e97cdeeb87c2